{"text_format":"1","workbook":"xlsx","n_sheets":5,"sheets":["RUMUSKARTU","DATA KARTU","KARTU PESERTA","DENAH UJIAN","TULISAN TEMPEL PENSIL"],"not_rendered":{"charts":0,"images":4,"macros":0,"external_links":0,"defined_names":6,"comments":0,"pivot_tables":0},"unopened":[],"bounds":{"document_bytes":16777216,"sheet_cells":100000,"rows_first":2000,"rows_last":500,"rows_between":2000,"halvings":0,"cell_chars":16384,"cell_head_chars":4096},"cells_cut":0,"cells_raw":0,"read":"whole","date_system":"1900"}

{"sheet":"RUMUSKARTU","index":0,"n_rows":6,"n_cols":4,"rows_kept":6,"cut":false,"hidden":false,"merged":[]}
["PTS","2017/2018",1,"GANJIL"]
["US","2018/2019",2,"GENAP"]
["UM","2019/2020",3]
["UAMNU","2020/2021",4]
["USMT1","2021/2022",5]
["USMT2",null,6]

{"sheet":"DATA KARTU","index":1,"n_rows":77,"n_cols":11,"rows_kept":77,"cut":false,"hidden":false,"merged":[[3,1,3,2],[4,1,4,2],[5,1,5,2],[3,3,3,5],[4,3,4,5],[5,3,5,5],[0,3,0,5],[1,3,1,5],[2,3,2,5],[0,1,0,2],[1,1,1,2],[2,1,2,2]]}
[null,"JUDUL",null,"KARTU TANDA PESERTA",null,null,"PTS",null,{"$f":"IF(G1=\"UAMNU\",\"UJIAN AKHIR MA'ARIF NU\",IF(G1=\"UM\",\"UJIAN MADRASAH\",IF(G1=\"US\",\"UJIAN SEKOLAH\",IF(G1=\"USMT1\",\"UJIAN SEMESTER 1\",IF(G1=\"USMT2\",\"UJIAN SEMESTER 2\",\"\")))))","v":""}]
[null,"TP",null,"TAHUN PELAJARAN",null,null,"2018/2019"]
[null,"SEKOLAH",null,"MIS NURUL ISLAM LABRUK KIDUL",null,null,"GANJIL"]
[null,"KEPALA MADRASAH",null,"SAHRONI,S.Pd.I"]
[null,"TEMPAT PELAKSANAAN",null,"Labruk Kidul"]
[null,"TANGGAL PELAKSANAAN",null,"2018-10-08"]
[]
["No.","RUANG","Nomor Peserta","Nama Peserta","Tempat Lahir","Tanggal Lahir","YANG SESUAI AKTE","KET","KELAS","nomor","UJIAN NASIONAL"]
[1,"6A",{"$f":"J9&\"-\"&K9","v":"6-2018-001-8"},"ADITYA MAULA FANDY TAULANI","LUMAJANG","13 Juni 2006",{"$f":"F9","v":"13 Juni 2006"},{"$f":"IF(G9=F9,\"sama\",\"tidak sama\")","v":"sama"},6,{"$f":"I9&\"-\"&TEXT($D$6,(\"yyyy\"))&\"-\"&TEXT(A9,\"#000\")","v":"6-2018-001"},8]
[2,"6A","6-2018-002-7","AHMAD RAMADHANI FADLULLOH","LUMAJANG","18 Oktober 2006",{"$f":"F10","v":"18 Oktober 2006"},{"$f":"IF(G10=F10,\"sama\",\"tidak sama\")","v":"sama"},6,"6-2018-002",7]
[3,"6A","6-2018-003-6","ANDINI MAULID DWI LESTARI","LUMAJANG","30 Maret 2007","30 Maret 2007","sama",6,"6-2018-003",6]
[4,"6A","6-2018-004-5","DEWI SAKINAH ISWARA","LUMAJANG","31 Agustus 2006","31 Agustus 2006","sama",6,"6-2018-004",5]
[5,"6A","6-2018-005-4","HANIK APRILIA SARI","LUMAJANG","23 April 2007","23 April 2007","sama",6,"6-2018-005",4]
[6,"6A","6-2018-006-3","HIDAYATUL KHUMAINIA","LUMAJANG","04 Oktober 2007","04 Oktober 2007","sama",6,"6-2018-006",3]
[7,"6A","6-2018-007-2","IZZA ILMIA AZZAHRA","LUMAJANG","15 Desember 2006","15 Desember 2006","sama",6,"6-2018-007",2]
[8,"6A","6-2018-008-9","KHARISYA AZZAHRO","LUMAJANG","21 Januari 2007","21 Januari 2007","sama",6,"6-2018-008",9]
[9,"6A","6-2018-009-8","MOCHAMAD RIFKY ROSAN","LUMAJANG","17 Juni 2006","17 Juni 2006","sama",6,"6-2018-009",8]
[10,"6A","6-2018-010-7","MUCHAMMAD ALIEF FERDIANSYAH","LUMAJANG","22 Juni 2006","22 Juni 2006","sama",6,"6-2018-010",7]
[11,"6A","6-2018-011-6","MUHAMMAD AGUS ANDRIANTO","LUMAJANG","11 Agustus 2006","11 Agustus 2006","sama",6,"6-2018-011",6]
[12,"6A","6-2018-012-5","MUHAMMAD BISMAR TAUFIQUROHMAN","LUMAJANG","20 Februari 2007","20 Februari 2007","sama",6,"6-2018-012",5]
[13,"6A","6-2018-013-4","MUHAMMAD SAHLAN SHODIQ","LUMAJANG","26 April 2006","26 April 2006","sama",6,"6-2018-013",4]
[14,"6A","6-2018-014-3","MUHAMMAD SEPTYAN EKA PRATAMA","LUMAJANG","14 September 2006","14 September 2006","sama",6,"6-2018-014",3]
[15,"6A","6-2018-015-2","MUHAMMAD VERYANSYAH","LUMAJANG","21 Mei 2006","21 Mei 2006","sama",6,"6-2018-015",2]
[16,"6A","6-2018-016-9","MUHAMMAD ZIDNY NA'IM","LUMAJANG","31 Juli 2006","31 Juli 2006","sama",6,"6-2018-016",9]
[17,"6A","6-2018-017-8","NABILA ARISKA PUTRI","LUMAJANG","16 Juni 2006","16 Juni 2006","sama",6,"6-2018-017",8]
[18,"6A","6-2018-018-7","NAFISA INDRIANI","LUMAJANG","03 Juni 2006","03 Juni 2006","sama",6,"6-2018-018",7]
[19,"6A","6-2018-019-6","NAJWA FARISYA BAROROH","LUMAJANG","25 Desember 2006","25 Desember 2006","sama",6,"6-2018-019",6]
[20,"6A","6-2018-020-5","NUR FITRIYAH","LUMAJANG","02 November 2006","02 November 2006","sama",6,"6-2018-020",5]
[21,"6A","6-2018-021-4","PUTRI NAFI'ATUS SOLIKHAH","LUMAJANG","24 Februari 2007","24 Februari 2007","sama",6,"6-2018-021",4]
[22,"6A","6-2018-022-3","QORIATUN SHOLIHAH","LUMAJANG","04 Mei 2006","04 Mei 2006","sama",6,"6-2018-022",3]
[23,"6A","6-2018-023-2","RACHMAD HIDAYAT","LUMAJANG","27 Agustus 2006","27 Agustus 2006","sama",6,"6-2018-023",2]
[24,"6A","6-2018-024-9","RHEA RAYSHANADA NUGRAHA","SURABAYA","06 Februari 2007","06 Februari 2007","sama",6,"6-2018-024",9]
[25,"6A","6-2018-025-8","RIYANTI APRILIA","LUMAJANG","26 April 2006","26 April 2006","sama",6,"6-2018-025",8]
[26,"6A","6-2018-026-7","SHONIA AULIA AS'AD","LUMAJANG","01 September 2006","01 September 2006","sama",6,"6-2018-026",7]
[27,"6A","6-2018-027-6","VERLINA DWI MAULANI","LUMAJANG","22 April 2006","22 April 2006","sama",6,"6-2018-027",6]
[28,"6A","6-2018-028-5","VIKA KUSUMA WATI","LUMAJANG","03 Mei 2007","03 Mei 2007","sama",6,"6-2018-028",5]
[29,"6A","6-2018-029-4","","","","","sama",6,"6-2018-029",4]
[30,"6A","6-2018-030-3","","","","","sama",6,"6-2018-030",3]
[31,"6A","6-2018-031-2","","","","","sama",6,"6-2018-031",2]
[32,"6A","6-2018-032-9","","","","","sama",6,"6-2018-032",9]
[33,"6A","6-2018-033-8","","","","","sama",6,{"$f":"I41&\"-\"&TEXT($D$6,(\"yyyy\"))&\"-\"&TEXT(A41,\"#000\")","v":"6-2018-033"},8]
[34,"6A","6-2018-034-7","","","",null,"sama",6,"6-2018-034",7]
[35,"6A","6-2018-035-6","","","",null,"sama",6,"6-2018-035",6]
[36,"6A","6-2018-036-5","IZZA AFKARINA","LUMAJANG","2005-08-17",null,"tidak sama",6,"6-2018-036",5]
[37,"6A","6-2018-037-4","JESIKA NUR SANJANA","LUMAJANG","2005-08-09",null,"tidak sama",6,"6-2018-037",4]
[38,"6A","6-2018-038-3","KHAFIT I'ZAZ ABIYYU","LUMAJANG","2006-02-10",null,"tidak sama",6,"6-2018-038",3]
[39,"6A","6-2018-039-2","KRISNA DWI WICAKSONO","Lumajang","2003-05-05",null,"tidak sama",6,"6-2018-039",2]
[40,"6A","6-2018-040-9","LAILA AFIFAHTUR ROHMAH","LUMAJANG","2006-05-11",null,"tidak sama",6,"6-2018-040",9]
[41,"6A","6-2018-041-8","LIA DAHLIA","LUMAJANG","2005-08-28",null,"tidak sama",6,"6-2018-041",8]
[42,"6A","6-2018-042-7","MIFTAKHUS SURUR","LUMAJANG","2005-05-29",null,"tidak sama",6,"6-2018-042",7]
[43,"6A","6-2018-043-6","MOCHAMAD ALIFAMADIO DWI ANANTA","LUMAJANG","2005-06-11",null,"tidak sama",6,"6-2018-043",6]
[44,"6A","6-2018-044-5","MOHAMAD RIZKY ARDIANTO","LUMAJANG","2005-08-25",null,"tidak sama",6,"6-2018-044",5]
[45,"6A","6-2018-045-4","MUHAMAD YOGA HALIM AKBAR","LUMAJANG","2006-01-08",null,"tidak sama",6,"6-2018-045",4]
[46,"6A","6-2018-046-3","MUHAMMAD AKBAR MAULANA ISKHAQ","Lumajang","2004-05-31",null,"tidak sama",6,"6-2018-046",3]
[47,"6A","6-2018-047-2","MUHAMMAD ARIS MAHENDRA","LUMAJANG","2004-04-30",null,"tidak sama",6,"6-2018-047",2]
[48,"6A","6-2018-048-9","MUHAMMAD REZA NURDIANSYAH","LUMAJANG","2005-07-15",null,"tidak sama",6,"6-2018-048",9]
[49,"6A","6-2018-049-8","MUHAMMAD SONI","Lumajang","2001-07-19",null,"tidak sama",6,"6-2018-049",8]
[50,"6A","6-2018-050-7","MUHAMMAD ZAYIN FADHLILLAH","LUMAJANG","2006-04-30",null,"tidak sama",6,"6-2018-050",7]
[51,"6A","6-2018-051-6","NURUL ISLAKHATUL MAGHFIROH","LUMAJANG","2006-04-14",null,"tidak sama",6,"6-2018-051",6]
[52,"6A","6-2018-052-5","SALIFA IHDAHLIA","LUMAJANG","2005-07-09",null,"tidak sama",6,"6-2018-052",5]
[53,"6A","6-2018-053-4","USUP ABDILAH","LUMAJANG","2005-07-19",null,"tidak sama",6,"6-2018-053",4]
[54,"6A","6-2018-054-3","YUNITA WARDATUL CHOIRIYAH","LUMAJANG","2005-06-17",null,"tidak sama",6,"6-2018-054",3]
[55,"6A","6-2018-055-2","YUSFI RIZKY AZIZAH","Lumajang","2005-08-02",null,"tidak sama",6,"6-2018-055",2]
[56,null,"6-2018-056-9",null,null,null,null,{"$f":"IF(G64=F64,\"sama\",\"tidak sama\")","v":"sama"},6,"6-2018-056",9]
[57,null,"6-2018-057-8",null,null,null,null,"sama",6,"6-2018-057",8]
[58,null,"6-2018-058-7",null,null,null,null,"sama",6,"6-2018-058",7]
[59,null,"6-2018-059-6",null,null,null,null,"sama",6,"6-2018-059",6]
[60,null,"6-2018-060-5",null,null,null,null,"sama",6,"6-2018-060",5]
[61,"5B","6-2018-061-4",null,null,null,null,"sama",6,"6-2018-061",4]
[62,"5B","6-2018-062-3","YOHAN EGA GILANG PERMANA","LUMAJANG","2006-11-24",null,"tidak sama",6,"6-2018-062",3]
[63,"5B","6-2018-063-2","VIKROUL KHAMILA","LUMAJANG","2007-04-19",null,"tidak sama",6,"6-2018-063",2]
[64,"5B","6-2018-064-9","ZIDNY ILMA NABILA","Lumajang","2007-07-29",null,"tidak sama",6,"6-2018-064",9]
[65,"5B",{"$f":"J73&\"-\"&K73","v":"6-2018-065-8"},"ZITNATUL AULIA ILLA","LUMAJANG","2007-09-10",null,"tidak sama",6,{"$f":"I73&\"-\"&TEXT($D$6,(\"yyyy\"))&\"-\"&TEXT(A73,\"#000\")","v":"6-2018-065"},8]
[66,"5B","6-2018-066-7",null,null,null,null,"sama",6,"6-2018-066",7]
[67,"5B","6-2018-067-6",null,null,null,null,"sama",6,"6-2018-067",6]
[68,"5B","6-2018-068-5",null,null,null,null,"sama",6,"6-2018-068",5]
[69,"5B","6-2018-069-4",null,null,null,null,"sama",6,"6-2018-069",4]

{"sheet":"KARTU PESERTA","index":2,"n_rows":517,"n_cols":17,"rows_kept":517,"cut":false,"hidden":false,"merged":[[508,5,508,6],[508,13,508,14],[509,5,509,6],[509,13,509,14],[513,2,515,2],[513,10,515,10],[512,5,512,7],[512,13,512,15],[504,1,504,5],[504,9,504,13],[505,1,505,5],[505,6,506,6],[505,9,505,13],[505,14,506,14],[506,1,506,5],[506,9,506,13],[491,5,491,6],[491,13,491,14],[492,5,492,6],[492,13,492,14],[496,2,498,2],[496,10,498,10],[495,5,495,7],[495,13,495,15],[487,1,487,5],[487,9,487,13],[488,1,488,5],[488,6,489,6],[488,9,488,13],[488,14,489,14],[489,1,489,5],[489,9,489,13],[474,5,474,6],[474,13,474,14],[475,5,475,6],[475,13,475,14],[479,2,481,2],[479,10,481,10],[478,5,478,7],[478,13,478,15],[470,1,470,5],[470,9,470,13],[471,1,471,5],[471,6,472,6],[471,9,471,13],[471,14,472,14],[472,1,472,5],[472,9,472,13],[457,5,457,6],[457,13,457,14],[458,5,458,6],[458,13,458,14],[462,2,464,2],[462,10,464,10],[461,5,461,7],[461,13,461,15],[453,1,453,5],[453,9,453,13],[454,1,454,5],[454,6,455,6],[454,9,454,13],[454,14,455,14],[455,1,455,5],[455,9,455,13],[440,5,440,6],[440,13,440,14],[441,5,441,6],[441,13,441,14],[445,2,447,2],[445,10,447,10],[444,5,444,7],[444,13,444,15],[436,1,436,5],[436,9,436,13],[437,1,437,5],[437,6,438,6],[437,9,437,13],[437,14,438,14],[438,1,438,5],[438,9,438,13],[422,5,422,6],[422,13,422,14],[423,5,423,6],[423,13,423,14],[427,2,429,2],[427,10,429,10],[426,5,426,7],[426,13,426,15],[418,1,418,5],[418,9,418,13],[419,1,419,5],[419,6,420,6],[419,9,419,13],[419,14,420,14],[420,1,420,5],[420,9,420,13],[405,5,405,6],[405,13,405,14],[406,5,406,6],[406,13,406,14],[410,2,412,2],[410,10,412,10],[409,5,409,7],[409,13,409,15],[401,1,401,5],[401,9,401,13],[402,1,402,5],[402,6,403,6],[402,9,402,13],[402,14,403,14],[403,1,403,5],[403,9,403,13],[388,5,388,6],[388,13,388,14],[389,5,389,6],[389,13,389,14],[393,2,395,2],[393,10,395,10],[392,5,392,7],[392,13,392,15],[384,1,384,5],[384,9,384,13],[385,1,385,5],[385,6,386,6],[385,9,385,13],[385,14,386,14],[386,1,386,5],[386,9,386,13],[371,5,371,6],[371,13,371,14],[372,5,372,6],[372,13,372,14],[376,2,378,2],[376,10,378,10],[375,5,375,7],[375,13,375,15],[367,1,367,5],[367,9,367,13],[368,1,368,5],[368,6,369,6],[368,9,368,13],[368,14,369,14],[369,1,369,5],[369,9,369,13],[354,5,354,6],[354,13,354,14],[355,5,355,6],[355,13,355,14],[359,2,361,2],[359,10,361,10],[358,5,358,7],[358,13,358,15],[350,1,350,5],[350,9,350,13],[351,1,351,5],[351,6,352,6],[351,9,351,13],[351,14,352,14],[352,1,352,5],[352,9,352,13],[337,5,337,6],[337,13,337,14],[338,5,338,6],[338,13,338,14],[342,2,344,2],[342,10,344,10],[341,5,341,7],[341,13,341,15],[333,1,333,5],[333,9,333,13],[334,1,334,5],[334,6,335,6],[334,9,334,13],[334,14,335,14],[335,1,335,5],[335,9,335,13],[320,5,320,6],[320,13,320,14],[321,5,321,6],[321,13,321,14],[325,2,327,2],[325,10,327,10],[324,5,324,7],[324,13,324,15],[316,1,316,5],[316,9,316,13],[317,1,317,5],[317,6,318,6],[317,9,317,13],[317,14,318,14],[318,1,318,5],[318,9,318,13],[303,5,303,6],[303,13,303,14],[304,5,304,6],[304,13,304,14],[308,2,310,2],[308,10,310,10],[307,5,307,7],[307,13,307,15],[299,1,299,5],[299,9,299,13],[300,1,300,5],[300,6,301,6],[300,9,300,13],[300,14,301,14],[301,1,301,5],[301,9,301,13],[286,5,286,6],[286,13,286,14],[287,5,287,6],[287,13,287,14],[291,2,293,2],[291,10,293,10],[290,5,290,7],[290,13,290,15],[282,1,282,5],[282,9,282,13],[283,1,283,5],[283,6,284,6],[283,9,283,13],[283,14,284,14],[284,1,284,5],[284,9,284,13],[269,5,269,6],[269,13,269,14],[270,5,270,6],[270,13,270,14],[274,2,276,2],[274,10,276,10],[273,5,273,7],[273,13,273,15],[265,1,265,5],[265,9,265,13],[266,1,266,5],[266,6,267,6],[266,9,266,13],[266,14,267,14],[267,1,267,5],[267,9,267,13],[252,5,252,6],[252,13,252,14],[253,5,253,6],[253,13,253,14],[257,2,259,2],[257,10,259,10],[256,5,256,7],[256,13,256,15],[248,1,248,5],[248,9,248,13],[249,1,249,5],[249,6,250,6],[249,9,249,13],[249,14,250,14],[250,1,250,5],[250,9,250,13],[235,5,235,6],[235,13,235,14],[236,5,236,6],[236,13,236,14],[240,2,242,2],[240,10,242,10],[239,5,239,7],[239,13,239,15],[231,1,231,5],[231,9,231,13],[232,1,232,5],[232,6,233,6],[232,9,232,13],[232,14,233,14],[233,1,233,5],[233,9,233,13],[218,5,218,6],[218,13,218,14],[219,5,219,6],[219,13,219,14],[223,2,225,2],[223,10,225,10],[222,5,222,7],[222,13,222,15],[214,1,214,5],[214,9,214,13],[215,1,215,5],[215,6,216,6],[215,9,215,13],[215,14,216,14],[216,1,216,5],[216,9,216,13],[201,5,201,6],[201,13,201,14],[202,5,202,6],[202,13,202,14],[206,2,208,2],[206,10,208,10],[205,5,205,7],[205,13,205,15],[197,1,197,5],[197,9,197,13],[198,1,198,5],[198,6,199,6],[198,9,198,13],[198,14,199,14],[199,1,199,5],[199,9,199,13],[184,5,184,6],[184,13,184,14],[185,5,185,6],[185,13,185,14],[189,2,191,2],[189,10,191,10],[180,1,180,5],[180,9,180,13],[181,1,181,5],[181,6,182,6],[181,9,181,13],[181,14,182,14],[182,1,182,5],[182,9,182,13],[163,5,163,6],[163,13,163,14],[164,5,164,6],[164,13,164,14],[168,2,170,2],[168,10,170,10],[167,5,167,7],[167,13,167,15],[159,1,159,5],[159,9,159,13],[160,1,160,5],[160,6,161,6],[160,9,160,13],[160,14,161,14],[161,1,161,5],[161,9,161,13],[146,5,146,6],[146,13,146,14],[147,5,147,6],[147,13,147,14],[151,2,153,2],[151,10,153,10],[150,5,150,7],[150,13,150,15],[142,1,142,5],[142,9,142,13],[143,1,143,5],[143,6,144,6],[143,9,143,13],[143,14,144,14],[144,1,144,5],[144,9,144,13],[129,5,129,6],[129,13,129,14],[130,5,130,6],[130,13,130,14],[134,2,136,2],[134,10,136,10],[133,5,133,7],[133,13,133,15],[125,1,125,5],[125,9,125,13],[126,1,126,5],[126,6,127,6],[126,9,126,13],[126,14,127,14],[127,1,127,5],[127,9,127,13],[112,5,112,6],[112,13,112,14],[113,5,113,6],[113,13,113,14],[117,2,119,2],[117,10,119,10],[108,1,108,5],[108,9,108,13],[109,1,109,5],[109,6,110,6],[109,9,109,13],[109,14,110,14],[110,1,110,5],[110,9,110,13],[95,5,95,6],[95,13,95,14],[96,5,96,6],[96,13,96,14],[100,2,102,2],[100,10,102,10],[99,5,99,7],[99,13,99,15],[91,1,91,5],[91,9,91,13],[92,1,92,5],[92,6,93,6],[92,9,92,13],[92,14,93,14],[93,1,93,5],[93,9,93,13],[79,2,81,2],[79,10,81,10],[70,1,70,5],[70,9,70,13],[71,1,71,5],[71,6,72,6],[71,9,71,13],[71,14,72,14],[72,1,72,5],[72,9,72,13],[78,5,78,7],[78,13,78,15],[74,5,74,6],[74,13,74,14],[75,5,75,6],[75,13,75,14],[62,2,64,2],[62,10,64,10],[53,1,53,5],[53,9,53,13],[54,1,54,5],[54,6,55,6],[54,9,54,13],[54,14,55,14],[55,1,55,5],[55,9,55,13],[61,5,61,7],[61,13,61,15],[57,5,57,6],[57,13,57,14],[58,5,58,6],[58,13,58,14],[45,2,47,2],[45,10,47,10],[36,1,36,5],[36,9,36,13],[37,1,37,5],[37,6,38,6],[37,9,37,13],[37,14,38,14],[38,1,38,5],[38,9,38,13],[44,5,44,7],[44,13,44,15],[40,5,40,6],[40,13,40,14],[41,5,41,6],[41,13,41,14],[3,14,4,14],[6,5,6,6],[7,5,7,6],[6,13,6,14],[7,13,7,14],[10,5,10,7],[24,13,24,14],[28,2,30,2],[28,10,30,10],[19,9,19,13],[20,1,20,5],[20,6,21,6],[20,9,20,13],[20,14,21,14],[21,1,21,5],[21,9,21,13],[10,13,10,15],[27,5,27,7],[27,13,27,15],[23,5,23,6],[23,13,23,14],[24,5,24,6],[11,2,13,2],[2,1,2,5],[3,1,3,5],[4,1,4,5],[3,6,4,6],[19,1,19,5],[2,9,2,13],[3,9,3,13],[4,9,4,13],[11,10,13,10]]}
[]
[]
[null,{"$f":"'DATA KARTU'!$D$1&\" \"&'DATA KARTU'!G1&\" \"&'DATA KARTU'!G3","v":"KARTU TANDA PESERTA PTS GANJIL"},null,null,null,null,"RUANG",null,null,{"$f":"'DATA KARTU'!$D$1&\" \"&'DATA KARTU'!G1&\" \"&'DATA KARTU'!G3","v":"KARTU TANDA PESERTA PTS GANJIL"},null,null,null,null,"RUANG"]
[null,{"$f":"'DATA KARTU'!$D$2&\" \"&'DATA KARTU'!G2","v":"TAHUN PELAJARAN 2018/2019"},null,null,null,null,{"$f":"'DATA KARTU'!$B9","v":"6A"},null,null,{"$f":"'DATA KARTU'!$D$2&\" \"&'DATA KARTU'!G2","v":"TAHUN PELAJARAN 2018/2019"},null,null,null,null,{"$f":"'DATA KARTU'!$B10","v":"6A"}]
[null,{"$f":"'DATA KARTU'!$D$3","v":"MIS NURUL ISLAM LABRUK KIDUL"},null,null,null,null,null,null,null,{"$f":"'DATA KARTU'!$D$3","v":"MIS NURUL ISLAM LABRUK KIDUL"}]
[]
[null,null,"Nomor Peserta",null,":",{"$f":"'DATA KARTU'!$C9","v":"6-2018-001-8"},null,null,null,null,"Nomor Peserta",null,":",{"$f":"'DATA KARTU'!$C10","v":"6-2018-002-7"}]
[null,null,"Nama Peserta",null,":",{"$f":"'DATA KARTU'!$D9","v":"ADITYA MAULA FANDY TAULANI"},null,null,null,null,"Nama Peserta",null,":",{"$f":"'DATA KARTU'!$D10","v":"AHMAD RAMADHANI FADLULLOH"}]
[null,null,"Tempat Tanggal Lahir",null,":",{"$f":"'DATA KARTU'!$E9&\", \"&TEXT('DATA KARTU'!$F9,\"dd mmmm yyyy\")","v":"LUMAJANG, 13 Juni 2006"},null,null,null,null,"Tempat Tanggal Lahir",null,":",{"$f":"'DATA KARTU'!$E10&\", \"&TEXT('DATA KARTU'!$F10,\"dd mmmm yyyy\")","v":"LUMAJANG, 18 Oktober 2006"}]
[]
[null,null,null,null,null,{"$f":"'DATA KARTU'!$D$5&\", \"&TEXT('DATA KARTU'!$D$6,\"dd mmmm yyyy\")","v":"Labruk Kidul, 08 Oktober 2018"},null,null,null,null,null,null,null,{"$f":"'DATA KARTU'!$D$5&\", \"&TEXT('DATA KARTU'!$D$6,\"dd mmmm yyyy\")","v":"Labruk Kidul, 08 Oktober 2018"}]
[null,null,"Pas Photo 3x3",null,null,"Kepala Madrasah",null,null,null,null,"Pas Photo 3x3",null,null,"Kepala Madrasah"]
[]
[]
[null,null,null,null,null,{"$f":"'DATA KARTU'!$D$4","v":"SAHRONI,S.Pd.I"},null,null,null,null,null,null,null,{"$f":"'DATA KARTU'!$D$4","v":"SAHRONI,S.Pd.I"}]
[]
[]
[]
[]
[null,{"$f":"'DATA KARTU'!$D$1&\" \"&'DATA KARTU'!G1&\" \"&'DATA KARTU'!G3","v":"KARTU TANDA PESERTA PTS GANJIL"},null,null,null,null,"RUANG",null,null,{"$f":"'DATA KARTU'!$D$1&\" \"&'DATA KARTU'!G1&\" \"&'DATA KARTU'!G3","v":"KARTU TANDA PESERTA PTS GANJIL"},null,null,null,null,"RUANG"]
[null,{"$f":"'DATA KARTU'!$D$2&\" \"&'DATA KARTU'!G2","v":"TAHUN PELAJARAN 2018/2019"},null,null,null,null,{"$f":"'DATA KARTU'!$B11","v":"6A"},null,null,{"$f":"'DATA KARTU'!$D$2&\" \"&'DATA KARTU'!G2","v":"TAHUN PELAJARAN 2018/2019"},null,null,null,null,{"$f":"'DATA KARTU'!$B12","v":"6A"}]
[null,{"$f":"'DATA KARTU'!$D$3","v":"MIS NURUL ISLAM LABRUK KIDUL"},null,null,null,null,null,null,null,{"$f":"'DATA KARTU'!$D$3","v":"MIS NURUL ISLAM LABRUK KIDUL"}]
[]
[null,null,"Nomor Peserta",null,":",{"$f":"'DATA KARTU'!$C11","v":"6-2018-003-6"},null,null,null,null,"Nomor Peserta",null,":",{"$f":"'DATA KARTU'!$C12","v":"6-2018-004-5"}]
[null,null,"Nama Peserta",null,":",{"$f":"'DATA KARTU'!$D11","v":"ANDINI MAULID DWI LESTARI"},null,null,null,null,"Nama Peserta",null,":",{"$f":"'DATA KARTU'!$D12","v":"DEWI SAKINAH ISWARA"}]
[null,null,"Tempat Tanggal Lahir",null,":",{"$f":"'DATA KARTU'!$E11&\", \"&TEXT('DATA KARTU'!$F11,\"dd mmmm yyyy\")","v":"LUMAJANG, 30 Maret 2007"},null,null,null,null,"Tempat Tanggal Lahir",null,":",{"$f":"'DATA KARTU'!$E12&\", \"&TEXT('DATA KARTU'!$F12,\"dd mmmm yyyy\")","v":"LUMAJANG, 31 Agustus 2006"}]
[]
[null,null,null,null,null,{"$f":"'DATA KARTU'!$D$5&\", \"&TEXT('DATA KARTU'!$D$6,\"dd mmmm yyyy\")","v":"Labruk Kidul, 08 Oktober 2018"},null,null,null,null,null,null,null,{"$f":"'DATA KARTU'!$D$5&\", \"&TEXT('DATA KARTU'!$D$6,\"dd mmmm yyyy\")","v":"Labruk Kidul, 08 Oktober 2018"}]
[null,null,"Pas Photo 3x3",null,null,"Kepala Madrasah",null,null,null,null,"Pas Photo 3x3",null,null,"Kepala Madrasah"]
[]
[]
[null,null,null,null,null,{"$f":"'DATA KARTU'!$D$4","v":"SAHRONI,S.Pd.I"},null,null,null,null,null,null,null,{"$f":"'DATA KARTU'!$D$4","v":"SAHRONI,S.Pd.I"}]
[]
[]
[]
[]
[null,{"$f":"'DATA KARTU'!$D$1&\" \"&'DATA KARTU'!G1&\" \"&'DATA KARTU'!G3","v":"KARTU TANDA PESERTA PTS GANJIL"},null,null,null,null,"RUANG",null,null,{"$f":"'DATA KARTU'!$D$1&\" \"&'DATA KARTU'!G1&\" \"&'DATA KARTU'!G3","v":"KARTU TANDA PESERTA PTS GANJIL"},null,null,null,null,"RUANG"]
[null,{"$f":"'DATA KARTU'!$D$2&\" \"&'DATA KARTU'!G2","v":"TAHUN PELAJARAN 2018/2019"},null,null,null,null,{"$f":"'DATA KARTU'!$B13","v":"6A"},null,null,{"$f":"'DATA KARTU'!$D$2&\" \"&'DATA KARTU'!G2","v":"TAHUN PELAJARAN 2018/2019"},null,null,null,null,{"$f":"'DATA KARTU'!$B14","v":"6A"}]
[null,{"$f":"'DATA KARTU'!$D$3","v":"MIS NURUL ISLAM LABRUK KIDUL"},null,null,null,null,null,null,null,{"$f":"'DATA KARTU'!$D$3","v":"MIS NURUL ISLAM LABRUK KIDUL"}]
[]
[null,null,"Nomor Peserta",null,":",{"$f":"'DATA KARTU'!$C13","v":"6-2018-005-4"},null,null,null,null,"Nomor Peserta",null,":",{"$f":"'DATA KARTU'!$C14","v":"6-2018-006-3"}]
[null,null,"Nama Peserta",null,":",{"$f":"'DATA KARTU'!$D13","v":"HANIK APRILIA SARI"},null,null,null,null,"Nama Peserta",null,":",{"$f":"'DATA KARTU'!$D14","v":"HIDAYATUL KHUMAINIA"}]
[null,null,"Tempat Tanggal Lahir",null,":",{"$f":"'DATA KARTU'!$E13&\", \"&TEXT('DATA KARTU'!$F13,\"dd mmmm yyyy\")","v":"LUMAJANG, 23 April 2007"},null,null,null,null,"Tempat Tanggal Lahir",null,":",{"$f":"'DATA KARTU'!$E14&\", \"&TEXT('DATA KARTU'!$F14,\"dd mmmm yyyy\")","v":"LUMAJANG, 04 Oktober 2007"}]
[]
[null,null,null,null,null,{"$f":"'DATA KARTU'!$D$5&\", \"&TEXT('DATA KARTU'!$D$6,\"dd mmmm yyyy\")","v":"Labruk Kidul, 08 Oktober 2018"},null,null,null,null,null,null,null,{"$f":"'DATA KARTU'!$D$5&\", \"&TEXT('DATA KARTU'!$D$6,\"dd mmmm yyyy\")","v":"Labruk Kidul, 08 Oktober 2018"}]
[null,null,"Pas Photo 3x3",null,null,"Kepala Madrasah",null,null,null,null,"Pas Photo 3x3",null,null,"Kepala Madrasah"]
[]
[]
[null,null,null,null,null,{"$f":"'DATA KARTU'!$D$4","v":"SAHRONI,S.Pd.I"},null,null,null,null,null,null,null,{"$f":"'DATA KARTU'!$D$4","v":"SAHRONI,S.Pd.I"}]
[]
[]
[]
[]
[null,{"$f":"'DATA KARTU'!$D$1&\" \"&'DATA KARTU'!G1&\" \"&'DATA KARTU'!G3","v":"KARTU TANDA PESERTA PTS GANJIL"},null,null,null,null,"RUANG",null,null,{"$f":"'DATA KARTU'!$D$1&\" \"&'DATA KARTU'!G1&\" \"&'DATA KARTU'!G3","v":"KARTU TANDA PESERTA PTS GANJIL"},null,null,null,null,"RUANG"]
[null,{"$f":"'DATA KARTU'!$D$2&\" \"&'DATA KARTU'!G2","v":"TAHUN PELAJARAN 2018/2019"},null,null,null,null,{"$f":"'DATA KARTU'!$B15","v":"6A"},null,null,{"$f":"'DATA KARTU'!$D$2&\" \"&'DATA KARTU'!G2","v":"TAHUN PELAJARAN 2018/2019"},null,null,null,null,{"$f":"'DATA KARTU'!$B16","v":"6A"}]
[null,{"$f":"'DATA KARTU'!$D$3","v":"MIS NURUL ISLAM LABRUK KIDUL"},null,null,null,null,null,null,null,{"$f":"'DATA KARTU'!$D$3","v":"MIS NURUL ISLAM LABRUK KIDUL"}]
[]
[null,null,"Nomor Peserta",null,":",{"$f":"'DATA KARTU'!$C15","v":"6-2018-007-2"},null,null,null,null,"Nomor Peserta",null,":",{"$f":"'DATA KARTU'!$C16","v":"6-2018-008-9"}]
[null,null,"Nama Peserta",null,":",{"$f":"'DATA KARTU'!$D15","v":"IZZA ILMIA AZZAHRA"},null,null,null,null,"Nama Peserta",null,":",{"$f":"'DATA KARTU'!$D16","v":"KHARISYA AZZAHRO"}]
[null,null,"Tempat Tanggal Lahir",null,":",{"$f":"'DATA KARTU'!$E15&\", \"&TEXT('DATA KARTU'!$F15,\"dd mmmm yyyy\")","v":"LUMAJANG, 15 Desember 2006"},null,null,null,null,"Tempat Tanggal Lahir",null,":",{"$f":"'DATA KARTU'!$E16&\", \"&TEXT('DATA KARTU'!$F16,\"dd mmmm yyyy\")","v":"LUMAJANG, 21 Januari 2007"}]
[]
[null,null,null,null,null,{"$f":"'DATA KARTU'!$D$5&\", \"&TEXT('DATA KARTU'!$D$6,\"dd mmmm yyyy\")","v":"Labruk Kidul, 08 Oktober 2018"},null,null,null,null,null,null,null,{"$f":"'DATA KARTU'!$D$5&\", \"&TEXT('DATA KARTU'!$D$6,\"dd mmmm yyyy\")","v":"Labruk Kidul, 08 Oktober 2018"}]
[null,null,"Pas Photo 3x3",null,null,"Kepala Madrasah",null,null,null,null,"Pas Photo 3x3",null,null,"Kepala Madrasah"]
[]
[]
[null,null,null,null,null,{"$f":"'DATA KARTU'!$D$4","v":"SAHRONI,S.Pd.I"},null,null,null,null,null,null,null,{"$f":"'DATA KARTU'!$D$4","v":"SAHRONI,S.Pd.I"}]
[]
[]
[]
[]
[null,{"$f":"'DATA KARTU'!$D$1&\" \"&'DATA KARTU'!G1&\" \"&'DATA KARTU'!G3","v":"KARTU TANDA PESERTA PTS GANJIL"},null,null,null,null,"RUANG",null,null,{"$f":"'DATA KARTU'!$D$1&\" \"&'DATA KARTU'!G1&\" \"&'DATA KARTU'!G3","v":"KARTU TANDA PESERTA PTS GANJIL"},null,null,null,null,"RUANG"]
[null,{"$f":"'DATA KARTU'!$D$2&\" \"&'DATA KARTU'!G2","v":"TAHUN PELAJARAN 2018/2019"},null,null,null,null,{"$f":"'DATA KARTU'!$B17","v":"6A"},null,null,{"$f":"'DATA KARTU'!$D$2&\" \"&'DATA KARTU'!G2","v":"TAHUN PELAJARAN 2018/2019"},null,null,null,null,{"$f":"'DATA KARTU'!$B18","v":"6A"}]
[null,{"$f":"'DATA KARTU'!$D$3","v":"MIS NURUL ISLAM LABRUK KIDUL"},null,null,null,null,null,null,null,{"$f":"'DATA KARTU'!$D$3","v":"MIS NURUL ISLAM LABRUK KIDUL"}]
[]
[null,null,"Nomor Peserta",null,":",{"$f":"'DATA KARTU'!$C17","v":"6-2018-009-8"},null,null,null,null,"Nomor Peserta",null,":",{"$f":"'DATA KARTU'!$C18","v":"6-2018-010-7"}]
[null,null,"Nama Peserta",null,":",{"$f":"'DATA KARTU'!$D17","v":"MOCHAMAD RIFKY ROSAN"},null,null,null,null,"Nama Peserta",null,":",{"$f":"'DATA KARTU'!$D18","v":"MUCHAMMAD ALIEF FERDIANSYAH"}]
[null,null,"Tempat Tanggal Lahir",null,":",{"$f":"'DATA KARTU'!$E17&\", \"&TEXT('DATA KARTU'!$F17,\"dd mmmm yyyy\")","v":"LUMAJANG, 17 Juni 2006"},null,null,null,null,"Tempat Tanggal Lahir",null,":",{"$f":"'DATA KARTU'!$E18&\", \"&TEXT('DATA KARTU'!$F18,\"dd mmmm yyyy\")","v":"LUMAJANG, 22 Juni 2006"}]
[]
[null,null,null,null,null,{"$f":"'DATA KARTU'!$D$5&\", \"&TEXT('DATA KARTU'!$D$6,\"dd mmmm yyyy\")","v":"Labruk Kidul, 08 Oktober 2018"},null,null,null,null,null,null,null,{"$f":"'DATA KARTU'!$D$5&\", \"&TEXT('DATA KARTU'!$D$6,\"dd mmmm yyyy\")","v":"Labruk Kidul, 08 Oktober 2018"}]
[null,null,"Pas Photo 3x3",null,null,"Kepala Madrasah",null,null,null,null,"Pas Photo 3x3",null,null,"Kepala Madrasah"]
[]
[]
[null,null,null,null,null,{"$f":"'DATA KARTU'!$D$4","v":"SAHRONI,S.Pd.I"},null,null,null,null,null,null,null,{"$f":"'DATA KARTU'!$D$4","v":"SAHRONI,S.Pd.I"}]
[]
[]
[]
[]
[]
[]
[]
[]
[null,{"$f":"'DATA KARTU'!$D$1&\" \"&'DATA KARTU'!G1&\" \"&'DATA KARTU'!G3","v":"KARTU TANDA PESERTA PTS GANJIL"},null,null,null,null,"RUANG",null,null,{"$f":"'DATA KARTU'!$D$1&\" \"&'DATA KARTU'!G1&\" \"&'DATA KARTU'!G3","v":"KARTU TANDA PESERTA PTS GANJIL"},null,null,null,null,"RUANG"]
[null,{"$f":"'DATA KARTU'!$D$2&\" \"&'DATA KARTU'!G2","v":"TAHUN PELAJARAN 2018/2019"},null,null,null,null,{"$f":"'DATA KARTU'!$B19","v":"6A"},null,null,{"$f":"'DATA KARTU'!$D$2&\" \"&'DATA KARTU'!G2","v":"TAHUN PELAJARAN 2018/2019"},null,null,null,null,{"$f":"'DATA KARTU'!$B20","v":"6A"}]
[null,{"$f":"'DATA KARTU'!$D$3","v":"MIS NURUL ISLAM LABRUK KIDUL"},null,null,null,null,null,null,null,{"$f":"'DATA KARTU'!$D$3","v":"MIS NURUL ISLAM LABRUK KIDUL"}]
[]
[null,null,"Nomor Peserta",null,":",{"$f":"'DATA KARTU'!$C19","v":"6-2018-011-6"},null,null,null,null,"Nomor Peserta",null,":",{"$f":"'DATA KARTU'!$C20","v":"6-2018-012-5"}]
[null,null,"Nama Peserta",null,":",{"$f":"'DATA KARTU'!$D19","v":"MUHAMMAD AGUS ANDRIANTO"},null,null,null,null,"Nama Peserta",null,":",{"$f":"'DATA KARTU'!$D20","v":"MUHAMMAD BISMAR TAUFIQUROHMAN"}]
[null,null,"Tempat Tanggal Lahir",null,":",{"$f":"'DATA KARTU'!$E19&\", \"&TEXT('DATA KARTU'!$F19,\"dd mmmm yyyy\")","v":"LUMAJANG, 11 Agustus 2006"},null,null,null,null,"Tempat Tanggal Lahir",null,":",{"$f":"'DATA KARTU'!$E20&\", \"&TEXT('DATA KARTU'!$F20,\"dd mmmm yyyy\")","v":"LUMAJANG, 20 Februari 2007"}]
[]
[null,null,null,null,null,{"$f":"'DATA KARTU'!$D$5&\", \"&TEXT('DATA KARTU'!$D$6,\"dd mmmm yyyy\")","v":"Labruk Kidul, 08 Oktober 2018"},null,null,null,null,null,null,null,{"$f":"'DATA KARTU'!$D$5&\", \"&TEXT('DATA KARTU'!$D$6,\"dd mmmm yyyy\")","v":"Labruk Kidul, 08 Oktober 2018"}]
[null,null,"Pas Photo 3x3",null,null,"Kepala Madrasah",null,null,null,null,"Pas Photo 3x3",null,null,"Kepala Madrasah"]
[]
[]
[null,null,null,null,null,{"$f":"'DATA KARTU'!$D$4","v":"SAHRONI,S.Pd.I"},null,null,null,null,null,null,null,{"$f":"'DATA KARTU'!$D$4","v":"SAHRONI,S.Pd.I"}]
[]
[]
[]
[]
[null,{"$f":"'DATA KARTU'!$D$1&\" \"&'DATA KARTU'!G1&\" \"&'DATA KARTU'!G3","v":"KARTU TANDA PESERTA PTS GANJIL"},null,null,null,null,"RUANG",null,null,{"$f":"'DATA KARTU'!$D$1&\" \"&'DATA KARTU'!G1&\" \"&'DATA KARTU'!G3","v":"KARTU TANDA PESERTA PTS GANJIL"},null,null,null,null,"RUANG"]
[null,{"$f":"'DATA KARTU'!$D$2&\" \"&'DATA KARTU'!G2","v":"TAHUN PELAJARAN 2018/2019"},null,null,null,null,{"$f":"'DATA KARTU'!$B21","v":"6A"},null,null,{"$f":"'DATA KARTU'!$D$2&\" \"&'DATA KARTU'!G2","v":"TAHUN PELAJARAN 2018/2019"},null,null,null,null,{"$f":"'DATA KARTU'!$B22","v":"6A"}]
[null,{"$f":"'DATA KARTU'!$D$3","v":"MIS NURUL ISLAM LABRUK KIDUL"},null,null,null,null,null,null,null,{"$f":"'DATA KARTU'!$D$3","v":"MIS NURUL ISLAM LABRUK KIDUL"}]
[]
[null,null,"Nomor Peserta",null,":",{"$f":"'DATA KARTU'!$C21","v":"6-2018-013-4"},null,null,null,null,"Nomor Peserta",null,":",{"$f":"'DATA KARTU'!$C22","v":"6-2018-014-3"}]
[null,null,"Nama Peserta",null,":",{"$f":"'DATA KARTU'!$D21","v":"MUHAMMAD SAHLAN SHODIQ"},null,null,null,null,"Nama Peserta",null,":",{"$f":"'DATA KARTU'!$D22","v":"MUHAMMAD SEPTYAN EKA PRATAMA"}]
[null,null,"Tempat Tanggal Lahir",null,":",{"$f":"'DATA KARTU'!$E21&\", \"&TEXT('DATA KARTU'!$F21,\"dd mmmm yyyy\")","v":"LUMAJANG, 26 April 2006"},null,null,null,null,"Tempat Tanggal Lahir",null,":",{"$f":"'DATA KARTU'!$E22&\", \"&TEXT('DATA KARTU'!$F22,\"dd mmmm yyyy\")","v":"LUMAJANG, 14 September 2006"}]
[]
[null,null,null,null,null,{"$f":"'DATA KARTU'!$D$5&\",\"","v":"Labruk Kidul,"},{"$f":"'DATA KARTU'!$D$6","v":"2018-10-08"},null,null,null,null,null,null,{"$f":"'DATA KARTU'!$D$5&\",\"","v":"Labruk Kidul,"},{"$f":"'DATA KARTU'!$D$6","v":"2018-10-08"}]
[null,null,"Pas Photo 3x3",null,null,"Kepala Madrasah",null,null,null,null,"Pas Photo 3x3",null,null,"Kepala Madrasah"]
[]
[]
[null,null,null,null,null,{"$f":"'DATA KARTU'!$D$4","v":"SAHRONI,S.Pd.I"},null,null,null,null,null,null,null,{"$f":"'DATA KARTU'!$D$4","v":"SAHRONI,S.Pd.I"}]
[]
[]
[]
[]
[null,{"$f":"'DATA KARTU'!$D$1&\" \"&'DATA KARTU'!G1&\" \"&'DATA KARTU'!G3","v":"KARTU TANDA PESERTA PTS GANJIL"},null,null,null,null,"RUANG",null,null,{"$f":"'DATA KARTU'!$D$1","v":"KARTU TANDA PESERTA"},null,null,null,null,"RUANG"]
[null,{"$f":"'DATA KARTU'!$D$2&\" \"&'DATA KARTU'!G2","v":"TAHUN PELAJARAN 2018/2019"},null,null,null,null,{"$f":"'DATA KARTU'!$B23","v":"6A"},null,null,{"$f":"'DATA KARTU'!$D$2&\" \"&'DATA KARTU'!G2","v":"TAHUN PELAJARAN 2018/2019"},null,null,null,null,{"$f":"'DATA KARTU'!$B24","v":"6A"}]
[null,{"$f":"'DATA KARTU'!$D$3","v":"MIS NURUL ISLAM LABRUK KIDUL"},null,null,null,null,null,null,null,{"$f":"'DATA KARTU'!$D$3","v":"MIS NURUL ISLAM LABRUK KIDUL"}]
[]
[null,null,"Nomor Peserta",null,":",{"$f":"'DATA KARTU'!$C23","v":"6-2018-015-2"},null,null,null,null,"Nomor Peserta",null,":",{"$f":"'DATA KARTU'!$C24","v":"6-2018-016-9"}]
[null,null,"Nama Peserta",null,":",{"$f":"'DATA KARTU'!$D23","v":"MUHAMMAD VERYANSYAH"},null,null,null,null,"Nama Peserta",null,":",{"$f":"'DATA KARTU'!$D24","v":"MUHAMMAD ZIDNY NA'IM"}]
[null,null,"Tempat Tanggal Lahir",null,":",{"$f":"'DATA KARTU'!$E23&\", \"&TEXT('DATA KARTU'!$F23,\"dd mmmm yyyy\")","v":"LUMAJANG, 21 Mei 2006"},null,null,null,null,"Tempat Tanggal Lahir",null,":",{"$f":"'DATA KARTU'!$E24&\", \"&TEXT('DATA KARTU'!$F24,\"dd mmmm yyyy\")","v":"LUMAJANG, 31 Juli 2006"}]
[]
[null,null,null,null,null,{"$f":"'DATA KARTU'!$D$5&\", \"&TEXT('DATA KARTU'!$D$6,\"dd mmmm yyyy\")","v":"Labruk Kidul, 08 Oktober 2018"},null,null,null,null,null,null,null,{"$f":"'DATA KARTU'!$D$5&\", \"&TEXT('DATA KARTU'!$D$6,\"dd mmmm yyyy\")","v":"Labruk Kidul, 08 Oktober 2018"}]
[null,null,"Pas Photo 3x3",null,null,"Kepala Madrasah",null,null,null,null,"Pas Photo 3x3",null,null,"Kepala Madrasah"]
[]
[]
[null,null,null,null,null,{"$f":"'DATA KARTU'!$D$4","v":"SAHRONI,S.Pd.I"},null,null,null,null,null,null,null,{"$f":"'DATA KARTU'!$D$4","v":"SAHRONI,S.Pd.I"}]
[]
[]
[]
[]
[null,{"$f":"'DATA KARTU'!$D$1&\" \"&'DATA KARTU'!G1&\" \"&'DATA KARTU'!G3","v":"KARTU TANDA PESERTA PTS GANJIL"},null,null,null,null,"RUANG",null,null,{"$f":"'DATA KARTU'!$D$1&\" \"&'DATA KARTU'!G1&\" \"&'DATA KARTU'!G3","v":"KARTU TANDA PESERTA PTS GANJIL"},null,null,null,null,"RUANG"]
[null,{"$f":"'DATA KARTU'!$D$2&\" \"&'DATA KARTU'!G2","v":"TAHUN PELAJARAN 2018/2019"},null,null,null,null,{"$f":"'DATA KARTU'!$B25","v":"6A"},null,null,{"$f":"'DATA KARTU'!$D$2&\" \"&'DATA KARTU'!G2","v":"TAHUN PELAJARAN 2018/2019"},null,null,null,null,{"$f":"'DATA KARTU'!$B26","v":"6A"}]
[null,{"$f":"'DATA KARTU'!$D$3","v":"MIS NURUL ISLAM LABRUK KIDUL"},null,null,null,null,null,null,null,{"$f":"'DATA KARTU'!$D$3","v":"MIS NURUL ISLAM LABRUK KIDUL"}]
[]
[null,null,"Nomor Peserta",null,":",{"$f":"'DATA KARTU'!$C25","v":"6-2018-017-8"},null,null,null,null,"Nomor Peserta",null,":",{"$f":"'DATA KARTU'!$C26","v":"6-2018-018-7"}]
[null,null,"Nama Peserta",null,":",{"$f":"'DATA KARTU'!$D25","v":"NABILA ARISKA PUTRI"},null,null,null,null,"Nama Peserta",null,":",{"$f":"'DATA KARTU'!$D26","v":"NAFISA INDRIANI"}]
[null,null,"Tempat Tanggal Lahir",null,":",{"$f":"'DATA KARTU'!$E25&\", \"&TEXT('DATA KARTU'!$F25,\"dd mmmm yyyy\")","v":"LUMAJANG, 16 Juni 2006"},null,null,null,null,"Tempat Tanggal Lahir",null,":",{"$f":"'DATA KARTU'!$E26&\", \"&TEXT('DATA KARTU'!$F26,\"dd mmmm yyyy\")","v":"LUMAJANG, 03 Juni 2006"}]
[]
[null,null,null,null,null,{"$f":"'DATA KARTU'!$D$5&\", \"&TEXT('DATA KARTU'!$D$6,\"dd mmmm yyyy\")","v":"Labruk Kidul, 08 Oktober 2018"},null,null,null,null,null,null,null,{"$f":"'DATA KARTU'!$D$5&\", \"&TEXT('DATA KARTU'!$D$6,\"dd mmmm yyyy\")","v":"Labruk Kidul, 08 Oktober 2018"}]
[null,null,"Pas Photo 3x3",null,null,"Kepala Madrasah",null,null,null,null,"Pas Photo 3x3",null,null,"Kepala Madrasah"]
[]
[]
[null,null,null,null,null,{"$f":"'DATA KARTU'!$D$4","v":"SAHRONI,S.Pd.I"},null,null,null,null,null,null,null,{"$f":"'DATA KARTU'!$D$4","v":"SAHRONI,S.Pd.I"}]
[]
[]
[]
[]
[null,{"$f":"'DATA KARTU'!$D$1&\" \"&'DATA KARTU'!G1&\" \"&'DATA KARTU'!G3","v":"KARTU TANDA PESERTA PTS GANJIL"},null,null,null,null,"RUANG",null,null,{"$f":"'DATA KARTU'!$D$1&\" \"&'DATA KARTU'!G1&\" \"&'DATA KARTU'!G3","v":"KARTU TANDA PESERTA PTS GANJIL"},null,null,null,null,"RUANG"]
[null,{"$f":"'DATA KARTU'!$D$2&\" \"&'DATA KARTU'!G2","v":"TAHUN PELAJARAN 2018/2019"},null,null,null,null,{"$f":"'DATA KARTU'!$B$27","v":"6A"},null,null,{"$f":"'DATA KARTU'!$D$2&\" \"&'DATA KARTU'!G2","v":"TAHUN PELAJARAN 2018/2019"},null,null,null,null,{"$f":"'DATA KARTU'!$B$28","v":"6A"}]
[null,{"$f":"'DATA KARTU'!$D$3","v":"MIS NURUL ISLAM LABRUK KIDUL"},null,null,null,null,null,null,null,{"$f":"'DATA KARTU'!$D$3","v":"MIS NURUL ISLAM LABRUK KIDUL"}]
[]
[null,null,"Nomor Peserta",null,":",{"$f":"'DATA KARTU'!$C27","v":"6-2018-019-6"},null,null,null,null,"Nomor Peserta",null,":",{"$f":"'DATA KARTU'!$C28","v":"6-2018-020-5"}]
[null,null,"Nama Peserta",null,":",{"$f":"'DATA KARTU'!$D27","v":"NAJWA FARISYA BAROROH"},null,null,null,null,"Nama Peserta",null,":",{"$f":"'DATA KARTU'!$D28","v":"NUR FITRIYAH"}]
[null,null,"Tempat Tanggal Lahir",null,":",{"$f":"'DATA KARTU'!$E27&\", \"&TEXT('DATA KARTU'!$F27,\"dd mmmm yyyy\")","v":"LUMAJANG, 25 Desember 2006"},null,null,null,null,"Tempat Tanggal Lahir",null,":",{"$f":"'DATA KARTU'!$E28&\", \"&TEXT('DATA KARTU'!$F28,\"dd mmmm yyyy\")","v":"LUMAJANG, 02 November 2006"}]
[]
[null,null,null,null,null,{"$f":"'DATA KARTU'!$D$5&\", \"&TEXT('DATA KARTU'!$D$6,\"dd mmmm yyyy\")","v":"Labruk Kidul, 08 Oktober 2018"},null,null,null,null,null,null,null,{"$f":"'DATA KARTU'!$D$5&\", \"&TEXT('DATA KARTU'!$D$6,\"dd mmmm yyyy\")","v":"Labruk Kidul, 08 Oktober 2018"}]
[null,null,"Pas Photo 3x3",null,null,"Kepala Madrasah",null,null,null,null,"Pas Photo 3x3",null,null,"Kepala Madrasah"]
[]
[]
[null,null,null,null,null,{"$f":"'DATA KARTU'!$D$4","v":"SAHRONI,S.Pd.I"},null,null,null,null,null,null,null,{"$f":"'DATA KARTU'!$D$4","v":"SAHRONI,S.Pd.I"}]
[]
[]
[]
[]
[]
[]
[]
[]
[null,{"$f":"'DATA KARTU'!$D$1&\" \"&'DATA KARTU'!G1&\" \"&'DATA KARTU'!G3","v":"KARTU TANDA PESERTA PTS GANJIL"},null,null,null,null,"RUANG",null,null,{"$f":"'DATA KARTU'!$D$1&\" \"&'DATA KARTU'!G1&\" \"&'DATA KARTU'!G3","v":"KARTU TANDA PESERTA PTS GANJIL"},null,null,null,null,"RUANG"]
[null,{"$f":"'DATA KARTU'!$D$2&\" \"&'DATA KARTU'!G2","v":"TAHUN PELAJARAN 2018/2019"},null,null,null,null,{"$f":"'DATA KARTU'!$B$29","v":"6A"},null,null,{"$f":"'DATA KARTU'!$D$2&\" \"&'DATA KARTU'!G2","v":"TAHUN PELAJARAN 2018/2019"},null,null,null,null,{"$f":"'DATA KARTU'!$B30","v":"6A"}]
[null,{"$f":"'DATA KARTU'!$D$3","v":"MIS NURUL ISLAM LABRUK KIDUL"},null,null,null,null,null,null,null,{"$f":"'DATA KARTU'!$D$3","v":"MIS NURUL ISLAM LABRUK KIDUL"}]
[]
[null,null,"Nomor Peserta",null,":",{"$f":"'DATA KARTU'!$C29","v":"6-2018-021-4"},null,null,null,null,"Nomor Peserta",null,":",{"$f":"'DATA KARTU'!$C30","v":"6-2018-022-3"}]
[null,null,"Nama Peserta",null,":",{"$f":"'DATA KARTU'!$D29","v":"PUTRI NAFI'ATUS SOLIKHAH"},null,null,null,null,"Nama Peserta",null,":",{"$f":"'DATA KARTU'!$D30","v":"QORIATUN SHOLIHAH"}]
[null,null,"Tempat Tanggal Lahir",null,":",{"$f":"'DATA KARTU'!$E29&\", \"&TEXT('DATA KARTU'!$F29,\"dd mmmm yyyy\")","v":"LUMAJANG, 24 Februari 2007"},null,null,null,null,"Tempat Tanggal Lahir",null,":",{"$f":"'DATA KARTU'!$E30&\", \"&TEXT('DATA KARTU'!$F30,\"dd mmmm yyyy\")","v":"LUMAJANG, 04 Mei 2006"}]
[]
[null,null,null,null,null,{"$f":"'DATA KARTU'!$D$5&\",\"","v":"Labruk Kidul,"},{"$f":"'DATA KARTU'!$D$6","v":"2018-10-08"},null,null,null,null,null,null,{"$f":"'DATA KARTU'!$D$5&\",\"","v":"Labruk Kidul,"},{"$f":"'DATA KARTU'!$D$6","v":"2018-10-08"}]
[null,null,"Pas Photo 3x3",null,null,"Kepala Madrasah",null,null,null,null,"Pas Photo 3x3",null,null,"Kepala Madrasah"]
[]
[]
[null,null,null,null,null,{"$f":"'DATA KARTU'!$D$4","v":"SAHRONI,S.Pd.I"},null,null,null,null,null,null,null,{"$f":"'DATA KARTU'!$D$4","v":"SAHRONI,S.Pd.I"}]
[]
[]
[]
[]
[null,{"$f":"'DATA KARTU'!$D$1&\" \"&'DATA KARTU'!G1&\" \"&'DATA KARTU'!G3","v":"KARTU TANDA PESERTA PTS GANJIL"},null,null,null,null,"RUANG",null,null,{"$f":"'DATA KARTU'!$D$1&\" \"&'DATA KARTU'!G1&\" \"&'DATA KARTU'!G3","v":"KARTU TANDA PESERTA PTS GANJIL"},null,null,null,null,"RUANG"]
[null,{"$f":"'DATA KARTU'!$D$2&\" \"&'DATA KARTU'!G2","v":"TAHUN PELAJARAN 2018/2019"},null,null,null,null,{"$f":"'DATA KARTU'!$B31","v":"6A"},null,null,{"$f":"'DATA KARTU'!$D$2&\" \"&'DATA KARTU'!G2","v":"TAHUN PELAJARAN 2018/2019"},null,null,null,null,{"$f":"'DATA KARTU'!$B32","v":"6A"}]
[null,{"$f":"'DATA KARTU'!$D$3","v":"MIS NURUL ISLAM LABRUK KIDUL"},null,null,null,null,null,null,null,{"$f":"'DATA KARTU'!$D$3","v":"MIS NURUL ISLAM LABRUK KIDUL"}]
[]
[null,null,"Nomor Peserta",null,":",{"$f":"'DATA KARTU'!$C31","v":"6-2018-023-2"},null,null,null,null,"Nomor Peserta",null,":",{"$f":"'DATA KARTU'!$C32","v":"6-2018-024-9"}]
[null,null,"Nama Peserta",null,":",{"$f":"'DATA KARTU'!$D31","v":"RACHMAD HIDAYAT"},null,null,null,null,"Nama Peserta",null,":",{"$f":"'DATA KARTU'!$D32","v":"RHEA RAYSHANADA NUGRAHA"}]
[null,null,"Tempat Tanggal Lahir",null,":",{"$f":"'DATA KARTU'!$E31&\", \"&TEXT('DATA KARTU'!$F31,\"dd mmmm yyyy\")","v":"LUMAJANG, 27 Agustus 2006"},null,null,null,null,"Tempat Tanggal Lahir",null,":",{"$f":"'DATA KARTU'!$E32&\", \"&TEXT('DATA KARTU'!$F32,\"dd mmmm yyyy\")","v":"SURABAYA, 06 Februari 2007"}]
[]
[null,null,null,null,null,{"$f":"'DATA KARTU'!$D$5&\", \"&TEXT('DATA KARTU'!$D$6,\"dd mmmm yyyy\")","v":"Labruk Kidul, 08 Oktober 2018"},null,null,null,null,null,null,null,{"$f":"'DATA KARTU'!$D$5&\", \"&TEXT('DATA KARTU'!$D$6,\"dd mmmm yyyy\")","v":"Labruk Kidul, 08 Oktober 2018"}]
[null,null,"Pas Photo 3x3",null,null,"Kepala Madrasah",null,null,null,null,"Pas Photo 3x3",null,null,"Kepala Madrasah"]
[]
[]
[null,null,null,null,null,{"$f":"'DATA KARTU'!$D$4","v":"SAHRONI,S.Pd.I"},null,null,null,null,null,null,null,{"$f":"'DATA KARTU'!$D$4","v":"SAHRONI,S.Pd.I"}]
[]
[]
[]
[]
[null,{"$f":"'DATA KARTU'!$D$1&\" \"&'DATA KARTU'!G1&\" \"&'DATA KARTU'!G3","v":"KARTU TANDA PESERTA PTS GANJIL"},null,null,null,null,"RUANG",null,null,{"$f":"'DATA KARTU'!$D$1&\" \"&'DATA KARTU'!G1&\" \"&'DATA KARTU'!G3","v":"KARTU TANDA PESERTA PTS GANJIL"},null,null,null,null,"RUANG"]
[null,{"$f":"'DATA KARTU'!$D$2&\" \"&'DATA KARTU'!G2","v":"TAHUN PELAJARAN 2018/2019"},null,null,null,null,{"$f":"'DATA KARTU'!$B33","v":"6A"},null,null,{"$f":"'DATA KARTU'!$D$2&\" \"&'DATA KARTU'!G2","v":"TAHUN PELAJARAN 2018/2019"},null,null,null,null,{"$f":"'DATA KARTU'!$B34","v":"6A"}]
[null,{"$f":"'DATA KARTU'!$D$3","v":"MIS NURUL ISLAM LABRUK KIDUL"},null,null,null,null,null,null,null,{"$f":"'DATA KARTU'!$D$3","v":"MIS NURUL ISLAM LABRUK KIDUL"}]
[]
[null,null,"Nomor Peserta",null,":",{"$f":"'DATA KARTU'!$C33","v":"6-2018-025-8"},null,null,null,null,"Nomor Peserta",null,":",{"$f":"'DATA KARTU'!$C34","v":"6-2018-026-7"}]
[null,null,"Nama Peserta",null,":",{"$f":"'DATA KARTU'!$D33","v":"RIYANTI APRILIA"},null,null,null,null,"Nama Peserta",null,":",{"$f":"'DATA KARTU'!$D34","v":"SHONIA AULIA AS'AD"}]
[null,null,"Tempat Tanggal Lahir",null,":",{"$f":"'DATA KARTU'!$E33&\", \"&TEXT('DATA KARTU'!$F33,\"dd mmmm yyyy\")","v":"LUMAJANG, 26 April 2006"},null,null,null,null,"Tempat Tanggal Lahir",null,":",{"$f":"'DATA KARTU'!$E34&\", \"&TEXT('DATA KARTU'!$F34,\"dd mmmm yyyy\")","v":"LUMAJANG, 01 September 2006"}]
[]
[null,null,null,null,null,{"$f":"'DATA KARTU'!$D$5&\", \"&TEXT('DATA KARTU'!$D$6,\"dd mmmm yyyy\")","v":"Labruk Kidul, 08 Oktober 2018"},null,null,null,null,null,null,null,{"$f":"'DATA KARTU'!$D$5&\", \"&TEXT('DATA KARTU'!$D$6,\"dd mmmm yyyy\")","v":"Labruk Kidul, 08 Oktober 2018"}]
[null,null,"Pas Photo 3x3",null,null,"Kepala Madrasah",null,null,null,null,"Pas Photo 3x3",null,null,"Kepala Madrasah"]
[]
[]
[null,null,null,null,null,{"$f":"'DATA KARTU'!$D$4","v":"SAHRONI,S.Pd.I"},null,null,null,null,null,null,null,{"$f":"'DATA KARTU'!$D$4","v":"SAHRONI,S.Pd.I"}]
[]
[]
[]
[]
[null,{"$f":"'DATA KARTU'!$D$1&\" \"&'DATA KARTU'!G1&\" \"&'DATA KARTU'!G3","v":"KARTU TANDA PESERTA PTS GANJIL"},null,null,null,null,"RUANG",null,null,{"$f":"'DATA KARTU'!$D$1&\" \"&'DATA KARTU'!G1&\" \"&'DATA KARTU'!G3","v":"KARTU TANDA PESERTA PTS GANJIL"},null,null,null,null,"RUANG"]
[null,{"$f":"'DATA KARTU'!$D$2&\" \"&'DATA KARTU'!G2","v":"TAHUN PELAJARAN 2018/2019"},null,null,null,null,{"$f":"'DATA KARTU'!$B35","v":"6A"},null,null,{"$f":"'DATA KARTU'!$D$2&\" \"&'DATA KARTU'!G2","v":"TAHUN PELAJARAN 2018/2019"},null,null,null,null,{"$f":"'DATA KARTU'!$B36","v":"6A"}]
[null,{"$f":"'DATA KARTU'!$D$3","v":"MIS NURUL ISLAM LABRUK KIDUL"},null,null,null,null,null,null,null,{"$f":"'DATA KARTU'!$D$3","v":"MIS NURUL ISLAM LABRUK KIDUL"}]
[]
[null,null,"Nomor Peserta",null,":",{"$f":"'DATA KARTU'!$C35","v":"6-2018-027-6"},null,null,null,null,"Nomor Peserta",null,":",{"$f":"'DATA KARTU'!$C36","v":"6-2018-028-5"}]
[null,null,"Nama Peserta",null,":",{"$f":"'DATA KARTU'!$D35","v":"VERLINA DWI MAULANI"},null,null,null,null,"Nama Peserta",null,":",{"$f":"'DATA KARTU'!$D36","v":"VIKA KUSUMA WATI"}]
[null,null,"Tempat Tanggal Lahir",null,":",{"$f":"'DATA KARTU'!$E35&\", \"&TEXT('DATA KARTU'!$F35,\"dd mmmm yyyy\")","v":"LUMAJANG, 22 April 2006"},null,null,null,null,"Tempat Tanggal Lahir",null,":",{"$f":"'DATA KARTU'!$E36&\", \"&TEXT('DATA KARTU'!$F36,\"dd mmmm yyyy\")","v":"LUMAJANG, 03 Mei 2007"}]
[]
[null,null,null,null,null,{"$f":"'DATA KARTU'!$D$5&\", \"&TEXT('DATA KARTU'!$D$6,\"dd mmmm yyyy\")","v":"Labruk Kidul, 08 Oktober 2018"},null,null,null,null,null,null,null,{"$f":"'DATA KARTU'!$D$5&\", \"&TEXT('DATA KARTU'!$D$6,\"dd mmmm yyyy\")","v":"Labruk Kidul, 08 Oktober 2018"}]
[null,null,"Pas Photo 3x3",null,null,"Kepala Madrasah",null,null,null,null,"Pas Photo 3x3",null,null,"Kepala Madrasah"]
[]
[]
[null,null,null,null,null,{"$f":"'DATA KARTU'!$D$4","v":"SAHRONI,S.Pd.I"},null,null,null,null,null,null,null,{"$f":"'DATA KARTU'!$D$4","v":"SAHRONI,S.Pd.I"}]
[]
[]
[]
[]
[null,{"$f":"'DATA KARTU'!$D$1&\" \"&'DATA KARTU'!G1&\" \"&'DATA KARTU'!G3","v":"KARTU TANDA PESERTA PTS GANJIL"},null,null,null,null,"RUANG",null,null,{"$f":"'DATA KARTU'!$D$1&\" \"&'DATA KARTU'!G1&\" \"&'DATA KARTU'!G3","v":"KARTU TANDA PESERTA PTS GANJIL"},null,null,null,null,"RUANG"]
[null,{"$f":"'DATA KARTU'!$D$2&\" \"&'DATA KARTU'!G2","v":"TAHUN PELAJARAN 2018/2019"},null,null,null,null,{"$f":"'DATA KARTU'!$B37","v":"6A"},null,null,{"$f":"'DATA KARTU'!$D$2&\" \"&'DATA KARTU'!G2","v":"TAHUN PELAJARAN 2018/2019"},null,null,null,null,{"$f":"'DATA KARTU'!$B38","v":"6A"}]
[null,{"$f":"'DATA KARTU'!$D$3","v":"MIS NURUL ISLAM LABRUK KIDUL"},null,null,null,null,null,null,null,{"$f":"'DATA KARTU'!$D$3","v":"MIS NURUL ISLAM LABRUK KIDUL"}]
[]
[null,null,"Nomor Peserta",null,":",{"$f":"'DATA KARTU'!$C37","v":"6-2018-029-4"},null,null,null,null,"Nomor Peserta",null,":",{"$f":"'DATA KARTU'!$C38","v":"6-2018-030-3"}]
[null,null,"Nama Peserta",null,":",{"$f":"'DATA KARTU'!$D37","v":""},null,null,null,null,"Nama Peserta",null,":",{"$f":"'DATA KARTU'!$D38","v":""}]
[null,null,"Tempat Tanggal Lahir",null,":",{"$f":"'DATA KARTU'!$E37&\", \"&TEXT('DATA KARTU'!$F37,\"dd mmmm yyyy\")","v":", "},null,null,null,null,"Tempat Tanggal Lahir",null,":",{"$f":"'DATA KARTU'!$E38&\", \"&TEXT('DATA KARTU'!$F38,\"dd mmmm yyyy\")","v":", "}]
[]
[null,null,null,null,null,{"$f":"'DATA KARTU'!$D$5&\", \"&TEXT('DATA KARTU'!$D$6,\"dd mmmm yyyy\")","v":"Labruk Kidul, 08 Oktober 2018"},null,null,null,null,null,null,null,{"$f":"'DATA KARTU'!$D$5&\", \"&TEXT('DATA KARTU'!$D$6,\"dd mmmm yyyy\")","v":"Labruk Kidul, 08 Oktober 2018"}]
[null,null,"Pas Photo 3x3",null,null,"Kepala Madrasah",null,null,null,null,"Pas Photo 3x3",null,null,"Kepala Madrasah"]
[]
[]
[null,null,null,null,null,{"$f":"'DATA KARTU'!$D$4","v":"SAHRONI,S.Pd.I"},null,null,null,null,null,null,null,{"$f":"'DATA KARTU'!$D$4","v":"SAHRONI,S.Pd.I"}]
[]
[]
[]
[]
[null,{"$f":"'DATA KARTU'!$D$1&\" \"&'DATA KARTU'!G1&\" \"&'DATA KARTU'!G3","v":"KARTU TANDA PESERTA PTS GANJIL"},null,null,null,null,"RUANG",null,null,{"$f":"'DATA KARTU'!$D$1&\" \"&'DATA KARTU'!G1&\" \"&'DATA KARTU'!G3","v":"KARTU TANDA PESERTA PTS GANJIL"},null,null,null,null,"RUANG"]
[null,{"$f":"'DATA KARTU'!$D$2&\" \"&'DATA KARTU'!G2","v":"TAHUN PELAJARAN 2018/2019"},null,null,null,null,{"$f":"'DATA KARTU'!$B39","v":"6A"},null,null,{"$f":"'DATA KARTU'!$D$2&\" \"&'DATA KARTU'!G2","v":"TAHUN PELAJARAN 2018/2019"},null,null,null,null,{"$f":"'DATA KARTU'!$B40","v":"6A"}]
[null,{"$f":"'DATA KARTU'!$D$3","v":"MIS NURUL ISLAM LABRUK KIDUL"},null,null,null,null,null,null,null,{"$f":"'DATA KARTU'!$D$3","v":"MIS NURUL ISLAM LABRUK KIDUL"}]
[]
[null,null,"Nomor Peserta",null,":",{"$f":"'DATA KARTU'!$C39","v":"6-2018-031-2"},null,null,null,null,"Nomor Peserta",null,":",{"$f":"'DATA KARTU'!$C40","v":"6-2018-032-9"}]
[null,null,"Nama Peserta",null,":",{"$f":"'DATA KARTU'!$D39","v":""},null,null,null,null,"Nama Peserta",null,":",{"$f":"'DATA KARTU'!$D40","v":""}]
[null,null,"Tempat Tanggal Lahir",null,":",{"$f":"'DATA KARTU'!$E39&\", \"&TEXT('DATA KARTU'!$F39,\"dd mmmm yyyy\")","v":", "},null,null,null,null,"Tempat Tanggal Lahir",null,":",{"$f":"'DATA KARTU'!$E40&\", \"&TEXT('DATA KARTU'!$F40,\"dd mmmm yyyy\")","v":", "}]
[]
[null,null,null,null,null,{"$f":"'DATA KARTU'!$D$5&\", \"&TEXT('DATA KARTU'!$D$6,\"dd mmmm yyyy\")","v":"Labruk Kidul, 08 Oktober 2018"},null,null,null,null,null,null,null,{"$f":"'DATA KARTU'!$D$5&\", \"&TEXT('DATA KARTU'!$D$6,\"dd mmmm yyyy\")","v":"Labruk Kidul, 08 Oktober 2018"}]
[null,null,"Pas Photo 3x3",null,null,"Kepala Madrasah",null,null,null,null,"Pas Photo 3x3",null,null,"Kepala Madrasah"]
[]
[]
[null,null,null,null,null,{"$f":"'DATA KARTU'!$D$4","v":"SAHRONI,S.Pd.I"},null,null,null,null,null,null,null,{"$f":"'DATA KARTU'!$D$4","v":"SAHRONI,S.Pd.I"}]
[]
[]
[]
[]
[null,{"$f":"'DATA KARTU'!$D$1&\" \"&'DATA KARTU'!G1&\" \"&'DATA KARTU'!G3","v":"KARTU TANDA PESERTA PTS GANJIL"},null,null,null,null,"RUANG",null,null,{"$f":"'DATA KARTU'!$D$1&\" \"&'DATA KARTU'!G1&\" \"&'DATA KARTU'!G3","v":"KARTU TANDA PESERTA PTS GANJIL"},null,null,null,null,"RUANG"]
[null,{"$f":"'DATA KARTU'!$D$2&\" \"&'DATA KARTU'!G2","v":"TAHUN PELAJARAN 2018/2019"},null,null,null,null,{"$f":"'DATA KARTU'!$B41","v":"6A"},null,null,{"$f":"'DATA KARTU'!$D$2&\" \"&'DATA KARTU'!G2","v":"TAHUN PELAJARAN 2018/2019"},null,null,null,null,{"$f":"'DATA KARTU'!$B42","v":"6A"}]
[null,{"$f":"'DATA KARTU'!$D$3","v":"MIS NURUL ISLAM LABRUK KIDUL"},null,null,null,null,null,null,null,{"$f":"'DATA KARTU'!$D$3","v":"MIS NURUL ISLAM LABRUK KIDUL"}]
[]
[null,null,"Nomor Peserta",null,":",{"$f":"'DATA KARTU'!$C41","v":"6-2018-033-8"},null,null,null,null,"Nomor Peserta",null,":",{"$f":"'DATA KARTU'!$C42","v":"6-2018-034-7"}]
[null,null,"Nama Peserta",null,":",{"$f":"'DATA KARTU'!$D41","v":""},null,null,null,null,"Nama Peserta",null,":",{"$f":"'DATA KARTU'!$D42","v":""}]
[null,null,"Tempat Tanggal Lahir",null,":",{"$f":"'DATA KARTU'!$E41&\", \"&TEXT('DATA KARTU'!$F41,\"dd mmmm yyyy\")","v":", "},null,null,null,null,"Tempat Tanggal Lahir",null,":",{"$f":"'DATA KARTU'!$E42&\", \"&TEXT('DATA KARTU'!$F42,\"dd mmmm yyyy\")","v":", "}]
[]
[null,null,null,null,null,{"$f":"'DATA KARTU'!$D$5&\", \"&TEXT('DATA KARTU'!$D$6,\"dd mmmm yyyy\")","v":"Labruk Kidul, 08 Oktober 2018"},null,null,null,null,null,null,null,{"$f":"'DATA KARTU'!$D$5&\", \"&TEXT('DATA KARTU'!$D$6,\"dd mmmm yyyy\")","v":"Labruk Kidul, 08 Oktober 2018"}]
[null,null,"Pas Photo 3x3",null,null,"Kepala Madrasah",null,null,null,null,"Pas Photo 3x3",null,null,"Kepala Madrasah"]
[]
[]
[null,null,null,null,null,{"$f":"'DATA KARTU'!$D$4","v":"SAHRONI,S.Pd.I"},null,null,null,null,null,null,null,{"$f":"'DATA KARTU'!$D$4","v":"SAHRONI,S.Pd.I"}]
[]
[]
[]
[]
[null,{"$f":"'DATA KARTU'!$D$1&\" \"&'DATA KARTU'!G1&\" \"&'DATA KARTU'!G3","v":"KARTU TANDA PESERTA PTS GANJIL"},null,null,null,null,"RUANG",null,null,{"$f":"'DATA KARTU'!$D$1&\" \"&'DATA KARTU'!G1&\" \"&'DATA KARTU'!G3","v":"KARTU TANDA PESERTA PTS GANJIL"},null,null,null,null,"RUANG"]
[null,{"$f":"'DATA KARTU'!$D$2&\" \"&'DATA KARTU'!G2","v":"TAHUN PELAJARAN 2018/2019"},null,null,null,null,{"$f":"'DATA KARTU'!$B43","v":"6A"},null,null,{"$f":"'DATA KARTU'!$D$2&\" \"&'DATA KARTU'!G2","v":"TAHUN PELAJARAN 2018/2019"},null,null,null,null,{"$f":"'DATA KARTU'!$B44","v":"6A"}]
[null,{"$f":"'DATA KARTU'!$D$3","v":"MIS NURUL ISLAM LABRUK KIDUL"},null,null,null,null,null,null,null,{"$f":"'DATA KARTU'!$D$3","v":"MIS NURUL ISLAM LABRUK KIDUL"}]
[]
[null,null,"Nomor Peserta",null,":",{"$f":"'DATA KARTU'!$C43","v":"6-2018-035-6"},null,null,null,null,"Nomor Peserta",null,":",{"$f":"'DATA KARTU'!$C44","v":"6-2018-036-5"}]
[null,null,"Nama Peserta",null,":",{"$f":"'DATA KARTU'!$D43","v":""},null,null,null,null,"Nama Peserta",null,":",{"$f":"'DATA KARTU'!$D44","v":"IZZA AFKARINA"}]
[null,null,"Tempat Tanggal Lahir",null,":",{"$f":"'DATA KARTU'!$E43&\", \"&TEXT('DATA KARTU'!$F43,\"dd mmmm yyyy\")","v":", "},null,null,null,null,"Tempat Tanggal Lahir",null,":",{"$f":"'DATA KARTU'!$E44&\", \"&TEXT('DATA KARTU'!$F44,\"dd mmmm yyyy\")","v":"LUMAJANG, 17 Agustus 2005"}]
[]
[null,null,null,null,null,{"$f":"'DATA KARTU'!$D$5&\", \"&TEXT('DATA KARTU'!$D$6,\"dd mmmm yyyy\")","v":"Labruk Kidul, 08 Oktober 2018"},null,null,null,null,null,null,null,{"$f":"'DATA KARTU'!$D$5&\", \"&TEXT('DATA KARTU'!$D$6,\"dd mmmm yyyy\")","v":"Labruk Kidul, 08 Oktober 2018"}]
[null,null,"Pas Photo 3x3",null,null,"Kepala Madrasah",null,null,null,null,"Pas Photo 3x3",null,null,"Kepala Madrasah"]
[]
[]
[null,null,null,null,null,{"$f":"'DATA KARTU'!$D$4","v":"SAHRONI,S.Pd.I"},null,null,null,null,null,null,null,{"$f":"'DATA KARTU'!$D$4","v":"SAHRONI,S.Pd.I"}]
[]
[]
[]
[]
[null,{"$f":"'DATA KARTU'!$D$1&\" \"&'DATA KARTU'!G1&\" \"&'DATA KARTU'!G3","v":"KARTU TANDA PESERTA PTS GANJIL"},null,null,null,null,"RUANG",null,null,{"$f":"'DATA KARTU'!$D$1&\" \"&'DATA KARTU'!G1&\" \"&'DATA KARTU'!G3","v":"KARTU TANDA PESERTA PTS GANJIL"},null,null,null,null,"RUANG"]
[null,{"$f":"'DATA KARTU'!$D$2&\" \"&'DATA KARTU'!G2","v":"TAHUN PELAJARAN 2018/2019"},null,null,null,null,{"$f":"'DATA KARTU'!$B45","v":"6A"},null,null,{"$f":"'DATA KARTU'!$D$2&\" \"&'DATA KARTU'!G2","v":"TAHUN PELAJARAN 2018/2019"},null,null,null,null,{"$f":"'DATA KARTU'!$B46","v":"6A"}]
[null,{"$f":"'DATA KARTU'!$D$3","v":"MIS NURUL ISLAM LABRUK KIDUL"},null,null,null,null,null,null,null,{"$f":"'DATA KARTU'!$D$3","v":"MIS NURUL ISLAM LABRUK KIDUL"}]
[]
[null,null,"Nomor Peserta",null,":",{"$f":"'DATA KARTU'!$C45","v":"6-2018-037-4"},null,null,null,null,"Nomor Peserta",null,":",{"$f":"'DATA KARTU'!$C46","v":"6-2018-038-3"}]
[null,null,"Nama Peserta",null,":",{"$f":"'DATA KARTU'!$D45","v":"JESIKA NUR SANJANA"},null,null,null,null,"Nama Peserta",null,":",{"$f":"'DATA KARTU'!$D46","v":"KHAFIT I'ZAZ ABIYYU"}]
[null,null,"Tempat Tanggal Lahir",null,":",{"$f":"'DATA KARTU'!$E45&\", \"&TEXT('DATA KARTU'!$F45,\"dd mmmm yyyy\")","v":"LUMAJANG, 09 Agustus 2005"},null,null,null,null,"Tempat Tanggal Lahir",null,":",{"$f":"'DATA KARTU'!$E46&\", \"&TEXT('DATA KARTU'!$F46,\"dd mmmm yyyy\")","v":"LUMAJANG, 10 Februari 2006"}]
[]
[null,null,null,null,null,{"$f":"'DATA KARTU'!$D$5&\", \"&TEXT('DATA KARTU'!$D$6,\"dd mmmm yyyy\")","v":"Labruk Kidul, 08 Oktober 2018"},null,null,null,null,null,null,null,{"$f":"'DATA KARTU'!$D$5&\", \"&TEXT('DATA KARTU'!$D$6,\"dd mmmm yyyy\")","v":"Labruk Kidul, 08 Oktober 2018"}]
[null,null,"Pas Photo 3x3",null,null,"Kepala Madrasah",null,null,null,null,"Pas Photo 3x3",null,null,"Kepala Madrasah"]
[]
[]
[null,null,null,null,null,{"$f":"'DATA KARTU'!$D$4","v":"SAHRONI,S.Pd.I"},null,null,null,null,null,null,null,{"$f":"'DATA KARTU'!$D$4","v":"SAHRONI,S.Pd.I"}]
[]
[]
[]
[]
[null,{"$f":"'DATA KARTU'!$D$1&\" \"&'DATA KARTU'!G1&\" \"&'DATA KARTU'!G3","v":"KARTU TANDA PESERTA PTS GANJIL"},null,null,null,null,"RUANG",null,null,{"$f":"'DATA KARTU'!$D$1&\" \"&'DATA KARTU'!G1&\" \"&'DATA KARTU'!G3","v":"KARTU TANDA PESERTA PTS GANJIL"},null,null,null,null,"RUANG"]
[null,{"$f":"'DATA KARTU'!$D$2&\" \"&'DATA KARTU'!G2","v":"TAHUN PELAJARAN 2018/2019"},null,null,null,null,{"$f":"'DATA KARTU'!$B47","v":"6A"},null,null,{"$f":"'DATA KARTU'!$D$2&\" \"&'DATA KARTU'!G2","v":"TAHUN PELAJARAN 2018/2019"},null,null,null,null,{"$f":"'DATA KARTU'!$B48","v":"6A"}]
[null,{"$f":"'DATA KARTU'!$D$3","v":"MIS NURUL ISLAM LABRUK KIDUL"},null,null,null,null,null,null,null,{"$f":"'DATA KARTU'!$D$3","v":"MIS NURUL ISLAM LABRUK KIDUL"}]
[]
[null,null,"Nomor Peserta",null,":",{"$f":"'DATA KARTU'!$C47","v":"6-2018-039-2"},null,null,null,null,"Nomor Peserta",null,":",{"$f":"'DATA KARTU'!$C48","v":"6-2018-040-9"}]
[null,null,"Nama Peserta",null,":",{"$f":"'DATA KARTU'!$D47","v":"KRISNA DWI WICAKSONO"},null,null,null,null,"Nama Peserta",null,":",{"$f":"'DATA KARTU'!$D48","v":"LAILA AFIFAHTUR ROHMAH"}]
[null,null,"Tempat Tanggal Lahir",null,":",{"$f":"'DATA KARTU'!$E47&\", \"&TEXT('DATA KARTU'!$F47,\"dd mmmm yyyy\")","v":"Lumajang, 05 Mei 2003"},null,null,null,null,"Tempat Tanggal Lahir",null,":",{"$f":"'DATA KARTU'!$E48&\", \"&TEXT('DATA KARTU'!$F48,\"dd mmmm yyyy\")","v":"LUMAJANG, 11 Mei 2006"}]
[]
[null,null,null,null,null,{"$f":"'DATA KARTU'!$D$5&\", \"&TEXT('DATA KARTU'!$D$6,\"dd mmmm yyyy\")","v":"Labruk Kidul, 08 Oktober 2018"},null,null,null,null,null,null,null,{"$f":"'DATA KARTU'!$D$5&\", \"&TEXT('DATA KARTU'!$D$6,\"dd mmmm yyyy\")","v":"Labruk Kidul, 08 Oktober 2018"}]
[null,null,"Pas Photo 3x3",null,null,"Kepala Madrasah",null,null,null,null,"Pas Photo 3x3",null,null,"Kepala Madrasah"]
[]
[]
[null,null,null,null,null,{"$f":"'DATA KARTU'!$D$4","v":"SAHRONI,S.Pd.I"},null,null,null,null,null,null,null,{"$f":"'DATA KARTU'!$D$4","v":"SAHRONI,S.Pd.I"}]
[]
[]
[]
[]
[null,{"$f":"'DATA KARTU'!$D$1&\" \"&'DATA KARTU'!G1&\" \"&'DATA KARTU'!G3","v":"KARTU TANDA PESERTA PTS GANJIL"},null,null,null,null,"RUANG",null,null,{"$f":"'DATA KARTU'!$D$1&\" \"&'DATA KARTU'!G1&\" \"&'DATA KARTU'!G3","v":"KARTU TANDA PESERTA PTS GANJIL"},null,null,null,null,"RUANG"]
[null,{"$f":"'DATA KARTU'!$D$2&\" \"&'DATA KARTU'!G2","v":"TAHUN PELAJARAN 2018/2019"},null,null,null,null,{"$f":"'DATA KARTU'!$B49","v":"6A"},null,null,{"$f":"'DATA KARTU'!$D$2&\" \"&'DATA KARTU'!G2","v":"TAHUN PELAJARAN 2018/2019"},null,null,null,null,{"$f":"'DATA KARTU'!$B50","v":"6A"}]
[null,{"$f":"'DATA KARTU'!$D$3","v":"MIS NURUL ISLAM LABRUK KIDUL"},null,null,null,null,null,null,null,{"$f":"'DATA KARTU'!$D$3","v":"MIS NURUL ISLAM LABRUK KIDUL"}]
[]
[null,null,"Nomor Peserta",null,":",{"$f":"'DATA KARTU'!$C49","v":"6-2018-041-8"},null,null,null,null,"Nomor Peserta",null,":",{"$f":"'DATA KARTU'!$C50","v":"6-2018-042-7"}]
[null,null,"Nama Peserta",null,":",{"$f":"'DATA KARTU'!$D49","v":"LIA DAHLIA"},null,null,null,null,"Nama Peserta",null,":",{"$f":"'DATA KARTU'!$D50","v":"MIFTAKHUS SURUR"}]
[null,null,"Tempat Tanggal Lahir",null,":",{"$f":"'DATA KARTU'!$E49&\", \"&TEXT('DATA KARTU'!$F49,\"dd mmmm yyyy\")","v":"LUMAJANG, 28 Agustus 2005"},null,null,null,null,"Tempat Tanggal Lahir",null,":",{"$f":"'DATA KARTU'!$E50&\", \"&TEXT('DATA KARTU'!$F50,\"dd mmmm yyyy\")","v":"LUMAJANG, 29 Mei 2005"}]
[]
[null,null,null,null,null,{"$f":"'DATA KARTU'!$D$5&\", \"&TEXT('DATA KARTU'!$D$6,\"dd mmmm yyyy\")","v":"Labruk Kidul, 08 Oktober 2018"},null,null,null,null,null,null,null,{"$f":"'DATA KARTU'!$D$5&\", \"&TEXT('DATA KARTU'!$D$6,\"dd mmmm yyyy\")","v":"Labruk Kidul, 08 Oktober 2018"}]
[null,null,"Pas Photo 3x3",null,null,"Kepala Madrasah",null,null,null,null,"Pas Photo 3x3",null,null,"Kepala Madrasah"]
[]
[]
[null,null,null,null,null,{"$f":"'DATA KARTU'!$D$4","v":"SAHRONI,S.Pd.I"},null,null,null,null,null,null,null,{"$f":"'DATA KARTU'!$D$4","v":"SAHRONI,S.Pd.I"}]
[]
[]
[]
[]
[null,{"$f":"'DATA KARTU'!$D$1&\" \"&'DATA KARTU'!G1&\" \"&'DATA KARTU'!G3","v":"KARTU TANDA PESERTA PTS GANJIL"},null,null,null,null,"RUANG",null,null,{"$f":"'DATA KARTU'!$D$1&\" \"&'DATA KARTU'!G1&\" \"&'DATA KARTU'!G3","v":"KARTU TANDA PESERTA PTS GANJIL"},null,null,null,null,"RUANG"]
[null,{"$f":"'DATA KARTU'!$D$2&\" \"&'DATA KARTU'!G2","v":"TAHUN PELAJARAN 2018/2019"},null,null,null,null,{"$f":"'DATA KARTU'!$B51","v":"6A"},null,null,{"$f":"'DATA KARTU'!$D$2&\" \"&'DATA KARTU'!G2","v":"TAHUN PELAJARAN 2018/2019"},null,null,null,null,{"$f":"'DATA KARTU'!$B52","v":"6A"}]
[null,{"$f":"'DATA KARTU'!$D$3","v":"MIS NURUL ISLAM LABRUK KIDUL"},null,null,null,null,null,null,null,{"$f":"'DATA KARTU'!$D$3","v":"MIS NURUL ISLAM LABRUK KIDUL"}]
[]
[null,null,"Nomor Peserta",null,":",{"$f":"'DATA KARTU'!$C51","v":"6-2018-043-6"},null,null,null,null,"Nomor Peserta",null,":",{"$f":"'DATA KARTU'!$C52","v":"6-2018-044-5"}]
[null,null,"Nama Peserta",null,":",{"$f":"'DATA KARTU'!$D51","v":"MOCHAMAD ALIFAMADIO DWI ANANTA"},null,null,null,null,"Nama Peserta",null,":",{"$f":"'DATA KARTU'!$D52","v":"MOHAMAD RIZKY ARDIANTO"}]
[null,null,"Tempat Tanggal Lahir",null,":",{"$f":"'DATA KARTU'!$E51&\", \"&TEXT('DATA KARTU'!$F51,\"dd mmmm yyyy\")","v":"LUMAJANG, 11 Juni 2005"},null,null,null,null,"Tempat Tanggal Lahir",null,":",{"$f":"'DATA KARTU'!$E52&\", \"&TEXT('DATA KARTU'!$F52,\"dd mmmm yyyy\")","v":"LUMAJANG, 25 Agustus 2005"}]
[]
[null,null,null,null,null,{"$f":"'DATA KARTU'!$D$5&\", \"&TEXT('DATA KARTU'!$D$6,\"dd mmmm yyyy\")","v":"Labruk Kidul, 08 Oktober 2018"},null,null,null,null,null,null,null,{"$f":"'DATA KARTU'!$D$5&\", \"&TEXT('DATA KARTU'!$D$6,\"dd mmmm yyyy\")","v":"Labruk Kidul, 08 Oktober 2018"}]
[null,null,"Pas Photo 3x3",null,null,"Kepala Madrasah",null,null,null,null,"Pas Photo 3x3",null,null,"Kepala Madrasah"]
[]
[]
[null,null,null,null,null,{"$f":"'DATA KARTU'!$D$4","v":"SAHRONI,S.Pd.I"},null,null,null,null,null,null,null,{"$f":"'DATA KARTU'!$D$4","v":"SAHRONI,S.Pd.I"}]
[]
[]
[]
[]
[null,{"$f":"'DATA KARTU'!$D$1&\" \"&'DATA KARTU'!G1&\" \"&'DATA KARTU'!G3","v":"KARTU TANDA PESERTA PTS GANJIL"},null,null,null,null,"RUANG",null,null,{"$f":"'DATA KARTU'!$D$1&\" \"&'DATA KARTU'!G1&\" \"&'DATA KARTU'!G3","v":"KARTU TANDA PESERTA PTS GANJIL"},null,null,null,null,"RUANG"]
[null,{"$f":"'DATA KARTU'!$D$2&\" \"&'DATA KARTU'!G2","v":"TAHUN PELAJARAN 2018/2019"},null,null,null,null,{"$f":"'DATA KARTU'!$B53","v":"6A"},null,null,{"$f":"'DATA KARTU'!$D$2&\" \"&'DATA KARTU'!G2","v":"TAHUN PELAJARAN 2018/2019"},null,null,null,null,{"$f":"'DATA KARTU'!$B54","v":"6A"}]
[null,{"$f":"'DATA KARTU'!$D$3","v":"MIS NURUL ISLAM LABRUK KIDUL"},null,null,null,null,null,null,null,{"$f":"'DATA KARTU'!$D$3","v":"MIS NURUL ISLAM LABRUK KIDUL"}]
[]
[null,null,"Nomor Peserta",null,":",{"$f":"'DATA KARTU'!$C53","v":"6-2018-045-4"},null,null,null,null,"Nomor Peserta",null,":",{"$f":"'DATA KARTU'!$C54","v":"6-2018-046-3"}]
[null,null,"Nama Peserta",null,":",{"$f":"'DATA KARTU'!$D53","v":"MUHAMAD YOGA HALIM AKBAR"},null,null,null,null,"Nama Peserta",null,":",{"$f":"'DATA KARTU'!$D54","v":"MUHAMMAD AKBAR MAULANA ISKHAQ"}]
[null,null,"Tempat Tanggal Lahir",null,":",{"$f":"'DATA KARTU'!$E53&\", \"&TEXT('DATA KARTU'!$F53,\"dd mmmm yyyy\")","v":"LUMAJANG, 08 Januari 2006"},null,null,null,null,"Tempat Tanggal Lahir",null,":",{"$f":"'DATA KARTU'!$E54&\", \"&TEXT('DATA KARTU'!$F54,\"dd mmmm yyyy\")","v":"Lumajang, 31 Mei 2004"}]
[]
[null,null,null,null,null,{"$f":"'DATA KARTU'!$D$5&\", \"&TEXT('DATA KARTU'!$D$6,\"dd mmmm yyyy\")","v":"Labruk Kidul, 08 Oktober 2018"},null,null,null,null,null,null,null,{"$f":"'DATA KARTU'!$D$5&\", \"&TEXT('DATA KARTU'!$D$6,\"dd mmmm yyyy\")","v":"Labruk Kidul, 08 Oktober 2018"}]
[null,null,"Pas Photo 3x3",null,null,"Kepala Madrasah",null,null,null,null,"Pas Photo 3x3",null,null,"Kepala Madrasah"]
[]
[]
[null,null,null,null,null,{"$f":"'DATA KARTU'!$D$4","v":"SAHRONI,S.Pd.I"},null,null,null,null,null,null,null,{"$f":"'DATA KARTU'!$D$4","v":"SAHRONI,S.Pd.I"}]
[]
[]
[]
[]
[null,{"$f":"'DATA KARTU'!$D$1&\" \"&'DATA KARTU'!G1&\" \"&'DATA KARTU'!G3","v":"KARTU TANDA PESERTA PTS GANJIL"},null,null,null,null,"RUANG",null,null,{"$f":"'DATA KARTU'!$D$1&\" \"&'DATA KARTU'!G1&\" \"&'DATA KARTU'!G3","v":"KARTU TANDA PESERTA PTS GANJIL"},null,null,null,null,"RUANG"]
[null,{"$f":"'DATA KARTU'!$D$2&\" \"&'DATA KARTU'!G2","v":"TAHUN PELAJARAN 2018/2019"},null,null,null,null,{"$f":"'DATA KARTU'!$B55","v":"6A"},null,null,{"$f":"'DATA KARTU'!$D$2&\" \"&'DATA KARTU'!G2","v":"TAHUN PELAJARAN 2018/2019"},null,null,null,null,{"$f":"'DATA KARTU'!$B56","v":"6A"}]
[null,{"$f":"'DATA KARTU'!$D$3","v":"MIS NURUL ISLAM LABRUK KIDUL"},null,null,null,null,null,null,null,{"$f":"'DATA KARTU'!$D$3","v":"MIS NURUL ISLAM LABRUK KIDUL"}]
[]
[null,null,"Nomor Peserta",null,":",{"$f":"'DATA KARTU'!$C55","v":"6-2018-047-2"},null,null,null,null,"Nomor Peserta",null,":",{"$f":"'DATA KARTU'!$C56","v":"6-2018-048-9"}]
[null,null,"Nama Peserta",null,":",{"$f":"'DATA KARTU'!$D55","v":"MUHAMMAD ARIS MAHENDRA"},null,null,null,null,"Nama Peserta",null,":",{"$f":"'DATA KARTU'!$D56","v":"MUHAMMAD REZA NURDIANSYAH"}]
[null,null,"Tempat Tanggal Lahir",null,":",{"$f":"'DATA KARTU'!$E55&\", \"&TEXT('DATA KARTU'!$F55,\"dd mmmm yyyy\")","v":"LUMAJANG, 30 April 2004"},null,null,null,null,"Tempat Tanggal Lahir",null,":",{"$f":"'DATA KARTU'!$E56&\", \"&TEXT('DATA KARTU'!$F56,\"dd mmmm yyyy\")","v":"LUMAJANG, 15 Juli 2005"}]
[]
[null,null,null,null,null,{"$f":"'DATA KARTU'!$D$5&\", \"&TEXT('DATA KARTU'!$D$6,\"dd mmmm yyyy\")","v":"Labruk Kidul, 08 Oktober 2018"},null,null,null,null,null,null,null,{"$f":"'DATA KARTU'!$D$5&\", \"&TEXT('DATA KARTU'!$D$6,\"dd mmmm yyyy\")","v":"Labruk Kidul, 08 Oktober 2018"}]
[null,null,"Pas Photo 3x3",null,null,"Kepala Madrasah",null,null,null,null,"Pas Photo 3x3",null,null,"Kepala Madrasah"]
[]
[]
[null,null,null,null,null,{"$f":"'DATA KARTU'!$D$4","v":"SAHRONI,S.Pd.I"},null,null,null,null,null,null,null,{"$f":"'DATA KARTU'!$D$4","v":"SAHRONI,S.Pd.I"}]
[]
[]
[]
[]
[null,{"$f":"'DATA KARTU'!$D$1&\" \"&'DATA KARTU'!G1&\" \"&'DATA KARTU'!G3","v":"KARTU TANDA PESERTA PTS GANJIL"},null,null,null,null,"RUANG",null,null,{"$f":"'DATA KARTU'!$D$1&\" \"&'DATA KARTU'!G1&\" \"&'DATA KARTU'!G3","v":"KARTU TANDA PESERTA PTS GANJIL"},null,null,null,null,"RUANG"]
[null,{"$f":"'DATA KARTU'!$D$2&\" \"&'DATA KARTU'!G2","v":"TAHUN PELAJARAN 2018/2019"},null,null,null,null,{"$f":"'DATA KARTU'!$B57","v":"6A"},null,null,{"$f":"'DATA KARTU'!$D$2&\" \"&'DATA KARTU'!G2","v":"TAHUN PELAJARAN 2018/2019"},null,null,null,null,{"$f":"'DATA KARTU'!$B58","v":"6A"}]
[null,{"$f":"'DATA KARTU'!$D$3","v":"MIS NURUL ISLAM LABRUK KIDUL"},null,null,null,null,null,null,null,{"$f":"'DATA KARTU'!$D$3","v":"MIS NURUL ISLAM LABRUK KIDUL"}]
[]
[null,null,"Nomor Peserta",null,":",{"$f":"'DATA KARTU'!$C57","v":"6-2018-049-8"},null,null,null,null,"Nomor Peserta",null,":",{"$f":"'DATA KARTU'!$C58","v":"6-2018-050-7"}]
[null,null,"Nama Peserta",null,":",{"$f":"'DATA KARTU'!$D57","v":"MUHAMMAD SONI"},null,null,null,null,"Nama Peserta",null,":",{"$f":"'DATA KARTU'!$D58","v":"MUHAMMAD ZAYIN FADHLILLAH"}]
[null,null,"Tempat Tanggal Lahir",null,":",{"$f":"'DATA KARTU'!$E57&\", \"&TEXT('DATA KARTU'!$F57,\"dd mmmm yyyy\")","v":"Lumajang, 19 Juli 2001"},null,null,null,null,"Tempat Tanggal Lahir",null,":",{"$f":"'DATA KARTU'!$E58&\", \"&TEXT('DATA KARTU'!$F58,\"dd mmmm yyyy\")","v":"LUMAJANG, 30 April 2006"}]
[]
[null,null,null,null,null,{"$f":"'DATA KARTU'!$D$5&\", \"&TEXT('DATA KARTU'!$D$6,\"dd mmmm yyyy\")","v":"Labruk Kidul, 08 Oktober 2018"},null,null,null,null,null,null,null,{"$f":"'DATA KARTU'!$D$5&\", \"&TEXT('DATA KARTU'!$D$6,\"dd mmmm yyyy\")","v":"Labruk Kidul, 08 Oktober 2018"}]
[null,null,"Pas Photo 3x3",null,null,"Kepala Madrasah",null,null,null,null,"Pas Photo 3x3",null,null,"Kepala Madrasah"]
[]
[]
[null,null,null,null,null,{"$f":"'DATA KARTU'!$D$4","v":"SAHRONI,S.Pd.I"},null,null,null,null,null,null,null,{"$f":"'DATA KARTU'!$D$4","v":"SAHRONI,S.Pd.I"}]
[]
[]
[]
[]
[]
[null,{"$f":"'DATA KARTU'!$D$1&\" \"&'DATA KARTU'!G1&\" \"&'DATA KARTU'!G3","v":"KARTU TANDA PESERTA PTS GANJIL"},null,null,null,null,"RUANG",null,null,{"$f":"'DATA KARTU'!$D$1&\" \"&'DATA KARTU'!G1&\" \"&'DATA KARTU'!G3","v":"KARTU TANDA PESERTA PTS GANJIL"},null,null,null,null,"RUANG"]
[null,{"$f":"'DATA KARTU'!$D$2&\" \"&'DATA KARTU'!G2","v":"TAHUN PELAJARAN 2018/2019"},null,null,null,null,{"$f":"'DATA KARTU'!$B59","v":"6A"},null,null,{"$f":"'DATA KARTU'!$D$2&\" \"&'DATA KARTU'!G2","v":"TAHUN PELAJARAN 2018/2019"},null,null,null,null,{"$f":"'DATA KARTU'!$B60","v":"6A"}]
[null,{"$f":"'DATA KARTU'!$D$3","v":"MIS NURUL ISLAM LABRUK KIDUL"},null,null,null,null,null,null,null,{"$f":"'DATA KARTU'!$D$3","v":"MIS NURUL ISLAM LABRUK KIDUL"}]
[]
[null,null,"Nomor Peserta",null,":",{"$f":"'DATA KARTU'!$C59","v":"6-2018-051-6"},null,null,null,null,"Nomor Peserta",null,":",{"$f":"'DATA KARTU'!$C60","v":"6-2018-052-5"}]
[null,null,"Nama Peserta",null,":",{"$f":"'DATA KARTU'!$D59","v":"NURUL ISLAKHATUL MAGHFIROH"},null,null,null,null,"Nama Peserta",null,":",{"$f":"'DATA KARTU'!$D60","v":"SALIFA IHDAHLIA"}]
[null,null,"Tempat Tanggal Lahir",null,":",{"$f":"'DATA KARTU'!$E59&\", \"&TEXT('DATA KARTU'!$F59,\"dd mmmm yyyy\")","v":"LUMAJANG, 14 April 2006"},null,null,null,null,"Tempat Tanggal Lahir",null,":",{"$f":"'DATA KARTU'!$E60&\", \"&TEXT('DATA KARTU'!$F60,\"dd mmmm yyyy\")","v":"LUMAJANG, 09 Juli 2005"}]
[]
[null,null,null,null,null,{"$f":"'DATA KARTU'!$D$5&\", \"&TEXT('DATA KARTU'!$D$6,\"dd mmmm yyyy\")","v":"Labruk Kidul, 08 Oktober 2018"},null,null,null,null,null,null,null,{"$f":"'DATA KARTU'!$D$5&\", \"&TEXT('DATA KARTU'!$D$6,\"dd mmmm yyyy\")","v":"Labruk Kidul, 08 Oktober 2018"}]
[null,null,"Pas Photo 3x3",null,null,"Kepala Madrasah",null,null,null,null,"Pas Photo 3x3",null,null,"Kepala Madrasah"]
[]
[]
[null,null,null,null,null,{"$f":"'DATA KARTU'!$D$4","v":"SAHRONI,S.Pd.I"},null,null,null,null,null,null,null,{"$f":"'DATA KARTU'!$D$4","v":"SAHRONI,S.Pd.I"}]
[]
[]
[]
[]
[null,{"$f":"'DATA KARTU'!$D$1&\" \"&'DATA KARTU'!G1&\" \"&'DATA KARTU'!G3","v":"KARTU TANDA PESERTA PTS GANJIL"},null,null,null,null,"RUANG",null,null,{"$f":"'DATA KARTU'!$D$1&\" \"&'DATA KARTU'!G1&\" \"&'DATA KARTU'!G3","v":"KARTU TANDA PESERTA PTS GANJIL"},null,null,null,null,"RUANG"]
[null,{"$f":"'DATA KARTU'!$D$2&\" \"&'DATA KARTU'!G2","v":"TAHUN PELAJARAN 2018/2019"},null,null,null,null,{"$f":"'DATA KARTU'!$B61","v":"6A"},null,null,{"$f":"'DATA KARTU'!$D$2&\" \"&'DATA KARTU'!G2","v":"TAHUN PELAJARAN 2018/2019"},null,null,null,null,{"$f":"'DATA KARTU'!$B62","v":"6A"}]
[null,{"$f":"'DATA KARTU'!$D$3","v":"MIS NURUL ISLAM LABRUK KIDUL"},null,null,null,null,null,null,null,{"$f":"'DATA KARTU'!$D$3","v":"MIS NURUL ISLAM LABRUK KIDUL"}]
[]
[null,null,"Nomor Peserta",null,":",{"$f":"'DATA KARTU'!$C61","v":"6-2018-053-4"},null,null,null,null,"Nomor Peserta",null,":",{"$f":"'DATA KARTU'!$C62","v":"6-2018-054-3"}]
[null,null,"Nama Peserta",null,":",{"$f":"'DATA KARTU'!$D61","v":"USUP ABDILAH"},null,null,null,null,"Nama Peserta",null,":",{"$f":"'DATA KARTU'!$D62","v":"YUNITA WARDATUL CHOIRIYAH"}]
[null,null,"Tempat Tanggal Lahir",null,":",{"$f":"'DATA KARTU'!$E61&\", \"&TEXT('DATA KARTU'!$F61,\"dd mmmm yyyy\")","v":"LUMAJANG, 19 Juli 2005"},null,null,null,null,"Tempat Tanggal Lahir",null,":",{"$f":"'DATA KARTU'!$E62&\", \"&TEXT('DATA KARTU'!$F62,\"dd mmmm yyyy\")","v":"LUMAJANG, 17 Juni 2005"}]
[]
[null,null,null,null,null,{"$f":"'DATA KARTU'!$D$5&\", \"&TEXT('DATA KARTU'!$D$6,\"dd mmmm yyyy\")","v":"Labruk Kidul, 08 Oktober 2018"},null,null,null,null,null,null,null,{"$f":"'DATA KARTU'!$D$5&\", \"&TEXT('DATA KARTU'!$D$6,\"dd mmmm yyyy\")","v":"Labruk Kidul, 08 Oktober 2018"}]
[null,null,"Pas Photo 3x3",null,null,"Kepala Madrasah",null,null,null,null,"Pas Photo 3x3",null,null,"Kepala Madrasah"]
[]
[]
[null,null,null,null,null,{"$f":"'DATA KARTU'!$D$4","v":"SAHRONI,S.Pd.I"},null,null,null,null,null,null,null,{"$f":"'DATA KARTU'!$D$4","v":"SAHRONI,S.Pd.I"}]
[]
[]
[]
[]
[null,{"$f":"'DATA KARTU'!$D$1&\" \"&'DATA KARTU'!G1&\" \"&'DATA KARTU'!G3","v":"KARTU TANDA PESERTA PTS GANJIL"},null,null,null,null,"RUANG",null,null,{"$f":"'DATA KARTU'!$D$1&\" \"&'DATA KARTU'!G1&\" \"&'DATA KARTU'!G3","v":"KARTU TANDA PESERTA PTS GANJIL"},null,null,null,null,"RUANG"]
[null,{"$f":"'DATA KARTU'!$D$2&\" \"&'DATA KARTU'!G2","v":"TAHUN PELAJARAN 2018/2019"},null,null,null,null,{"$f":"'DATA KARTU'!$B63","v":"6A"},null,null,{"$f":"'DATA KARTU'!$D$2&\" \"&'DATA KARTU'!G2","v":"TAHUN PELAJARAN 2018/2019"},null,null,null,null,{"$f":"'DATA KARTU'!$B64","v":0}]
[null,{"$f":"'DATA KARTU'!$D$3","v":"MIS NURUL ISLAM LABRUK KIDUL"},null,null,null,null,null,null,null,{"$f":"'DATA KARTU'!$D$3","v":"MIS NURUL ISLAM LABRUK KIDUL"}]
[]
[null,null,"Nomor Peserta",null,":",{"$f":"'DATA KARTU'!$C63","v":"6-2018-055-2"},null,null,null,null,"Nomor Peserta",null,":",{"$f":"'DATA KARTU'!$C64","v":"6-2018-056-9"}]
[null,null,"Nama Peserta",null,":",{"$f":"'DATA KARTU'!$D63","v":"YUSFI RIZKY AZIZAH"},null,null,null,null,"Nama Peserta",null,":",{"$f":"'DATA KARTU'!$D64","v":0}]
[null,null,"Tempat Tanggal Lahir",null,":",{"$f":"'DATA KARTU'!$E63&\", \"&TEXT('DATA KARTU'!$F63,\"dd mmmm yyyy\")","v":"Lumajang, 02 Agustus 2005"},null,null,null,null,"Tempat Tanggal Lahir",null,":",{"$f":"'DATA KARTU'!$E64&\", \"&TEXT('DATA KARTU'!$F64,\"dd mmmm yyyy\")","v":", 00 Januari 1900"}]
[]
[null,null,null,null,null,{"$f":"'DATA KARTU'!$D$5&\", \"&TEXT('DATA KARTU'!$D$6,\"dd mmmm yyyy\")","v":"Labruk Kidul, 08 Oktober 2018"},null,null,null,null,null,null,null,{"$f":"'DATA KARTU'!$D$5&\", \"&TEXT('DATA KARTU'!$D$6,\"dd mmmm yyyy\")","v":"Labruk Kidul, 08 Oktober 2018"}]
[null,null,"Pas Photo 3x3",null,null,"Kepala Madrasah",null,null,null,null,"Pas Photo 3x3",null,null,"Kepala Madrasah"]
[]
[]
[null,null,null,null,null,{"$f":"'DATA KARTU'!$D$4","v":"SAHRONI,S.Pd.I"},null,null,null,null,null,null,null,{"$f":"'DATA KARTU'!$D$4","v":"SAHRONI,S.Pd.I"}]
[]
[]
[]
[]
[null,{"$f":"'DATA KARTU'!$D$1&\" \"&'DATA KARTU'!G1&\" \"&'DATA KARTU'!G3","v":"KARTU TANDA PESERTA PTS GANJIL"},null,null,null,null,"RUANG",null,null,{"$f":"'DATA KARTU'!$D$1&\" \"&'DATA KARTU'!G1&\" \"&'DATA KARTU'!G3","v":"KARTU TANDA PESERTA PTS GANJIL"},null,null,null,null,"RUANG"]
[null,{"$f":"'DATA KARTU'!$D$2&\" \"&'DATA KARTU'!G2","v":"TAHUN PELAJARAN 2018/2019"},null,null,null,null,{"$f":"'DATA KARTU'!$B65","v":0},null,null,{"$f":"'DATA KARTU'!$D$2&\" \"&'DATA KARTU'!G2","v":"TAHUN PELAJARAN 2018/2019"},null,null,null,null,{"$f":"'DATA KARTU'!$B66","v":0}]
[null,{"$f":"'DATA KARTU'!$D$3","v":"MIS NURUL ISLAM LABRUK KIDUL"},null,null,null,null,null,null,null,{"$f":"'DATA KARTU'!$D$3","v":"MIS NURUL ISLAM LABRUK KIDUL"}]
[]
[null,null,"Nomor Peserta",null,":",{"$f":"'DATA KARTU'!$C65","v":"6-2018-057-8"},null,null,null,null,"Nomor Peserta",null,":",{"$f":"'DATA KARTU'!$C66","v":"6-2018-058-7"}]
[null,null,"Nama Peserta",null,":",{"$f":"'DATA KARTU'!$D65","v":0},null,null,null,null,"Nama Peserta",null,":",{"$f":"'DATA KARTU'!$D66","v":0}]
[null,null,"Tempat Tanggal Lahir",null,":",{"$f":"'DATA KARTU'!$E65&\", \"&TEXT('DATA KARTU'!$F65,\"dd mmmm yyyy\")","v":", 00 Januari 1900"},null,null,null,null,"Tempat Tanggal Lahir",null,":",{"$f":"'DATA KARTU'!$E66&\", \"&TEXT('DATA KARTU'!$F66,\"dd mmmm yyyy\")","v":", 00 Januari 1900"}]
[]
[null,null,null,null,null,{"$f":"'DATA KARTU'!$D$5&\", \"&TEXT('DATA KARTU'!$D$6,\"dd mmmm yyyy\")","v":"Labruk Kidul, 08 Oktober 2018"},null,null,null,null,null,null,null,{"$f":"'DATA KARTU'!$D$5&\", \"&TEXT('DATA KARTU'!$D$6,\"dd mmmm yyyy\")","v":"Labruk Kidul, 08 Oktober 2018"}]
[null,null,"Pas Photo 3x3",null,null,"Kepala Madrasah",null,null,null,null,"Pas Photo 3x3",null,null,"Kepala Madrasah"]
[]
[]
[null,null,null,null,null,{"$f":"'DATA KARTU'!$D$4","v":"SAHRONI,S.Pd.I"},null,null,null,null,null,null,null,{"$f":"'DATA KARTU'!$D$4","v":"SAHRONI,S.Pd.I"}]
[]
[]
[]
[]
[null,{"$f":"'DATA KARTU'!$D$1&\" \"&'DATA KARTU'!G1&\" \"&'DATA KARTU'!G3","v":"KARTU TANDA PESERTA PTS GANJIL"},null,null,null,null,"RUANG",null,null,{"$f":"'DATA KARTU'!$D$1&\" \"&'DATA KARTU'!G1&\" \"&'DATA KARTU'!G3","v":"KARTU TANDA PESERTA PTS GANJIL"},null,null,null,null,"RUANG"]
[null,{"$f":"'DATA KARTU'!$D$2&\" \"&'DATA KARTU'!G2","v":"TAHUN PELAJARAN 2018/2019"},null,null,null,null,{"$f":"'DATA KARTU'!$B67","v":0},null,null,{"$f":"'DATA KARTU'!$D$2&\" \"&'DATA KARTU'!G2","v":"TAHUN PELAJARAN 2018/2019"},null,null,null,null,{"$f":"'DATA KARTU'!$B68","v":0}]
[null,{"$f":"'DATA KARTU'!$D$3","v":"MIS NURUL ISLAM LABRUK KIDUL"},null,null,null,null,null,null,null,{"$f":"'DATA KARTU'!$D$3","v":"MIS NURUL ISLAM LABRUK KIDUL"}]
[]
[null,null,"Nomor Peserta",null,":",{"$f":"'DATA KARTU'!$C67","v":"6-2018-059-6"},null,null,null,null,"Nomor Peserta",null,":",{"$f":"'DATA KARTU'!$C68","v":"6-2018-060-5"}]
[null,null,"Nama Peserta",null,":",{"$f":"'DATA KARTU'!$D67","v":0},null,null,null,null,"Nama Peserta",null,":",{"$f":"'DATA KARTU'!$D68","v":0}]
[null,null,"Tempat Tanggal Lahir",null,":",{"$f":"'DATA KARTU'!$E67&\", \"&TEXT('DATA KARTU'!$F67,\"dd mmmm yyyy\")","v":", 00 Januari 1900"},null,null,null,null,"Tempat Tanggal Lahir",null,":",{"$f":"'DATA KARTU'!$E68&\", \"&TEXT('DATA KARTU'!$F68,\"dd mmmm yyyy\")","v":", 00 Januari 1900"}]
[]
[null,null,null,null,null,{"$f":"'DATA KARTU'!$D$5&\", \"&TEXT('DATA KARTU'!$D$6,\"dd mmmm yyyy\")","v":"Labruk Kidul, 08 Oktober 2018"},null,null,null,null,null,null,null,{"$f":"'DATA KARTU'!$D$5&\", \"&TEXT('DATA KARTU'!$D$6,\"dd mmmm yyyy\")","v":"Labruk Kidul, 08 Oktober 2018"}]
[null,null,"Pas Photo 3x3",null,null,"Kepala Madrasah",null,null,null,null,"Pas Photo 3x3",null,null,"Kepala Madrasah"]
[null,null,null,null,null,null,null,null,null,null,null,null,null,null,null,null,"`"]
[]
[null,null,null,null,null,{"$f":"'DATA KARTU'!$D$4","v":"SAHRONI,S.Pd.I"},null,null,null,null,null,null,null,{"$f":"'DATA KARTU'!$D$4","v":"SAHRONI,S.Pd.I"}]

{"sheet":"DENAH UJIAN","index":3,"n_rows":104,"n_cols":8,"rows_kept":104,"cut":false,"hidden":false,"merged":[[74,0,74,8],[1,0,1,8],[37,0,37,8],[73,0,73,8],[0,0,0,8],[2,0,2,8],[36,0,36,8],[38,0,38,8],[72,0,72,8]]}
[{"$f":"\"DENAH RUANG \"&'DATA KARTU'!B9","v":"DENAH RUANG 6A"}]
[{"$f":"'DATA KARTU'!I1&\" (\"&'DATA KARTU'!G1&\")\"","v":" (PTS)"}]
[{"$f":"'DATA KARTU'!$D$3","v":"MIS NURUL ISLAM LABRUK KIDUL"}]
[]
[]
[null,"●",null,"●",null,"●",null,"●"]
[null,{"$f":"'DATA KARTU'!$C28","v":"6-2018-020-5"},null,{"$f":"'DATA KARTU'!$C27","v":"6-2018-019-6"},null,{"$f":"'DATA KARTU'!$C26","v":"6-2018-018-7"},null,{"$f":"'DATA KARTU'!$C25","v":"6-2018-017-8"}]
[null,{"$f":"'DATA KARTU'!$D28","v":"NUR FITRIYAH"},null,{"$f":"'DATA KARTU'!$D27","v":"NAJWA FARISYA BAROROH"},null,{"$f":"'DATA KARTU'!$D26","v":"NAFISA INDRIANI"},null,{"$f":"'DATA KARTU'!$D25","v":"NABILA ARISKA PUTRI"}]
[]
[]
[null,"●",null,"●",null,"●",null,"●"]
[null,{"$f":"'DATA KARTU'!$C21","v":"6-2018-013-4"},null,{"$f":"'DATA KARTU'!$C22","v":"6-2018-014-3"},null,{"$f":"'DATA KARTU'!$C23","v":"6-2018-015-2"},null,{"$f":"'DATA KARTU'!$C24","v":"6-2018-016-9"}]
[null,{"$f":"'DATA KARTU'!$D21","v":"MUHAMMAD SAHLAN SHODIQ"},null,{"$f":"'DATA KARTU'!$D22","v":"MUHAMMAD SEPTYAN EKA PRATAMA"},null,{"$f":"'DATA KARTU'!$D23","v":"MUHAMMAD VERYANSYAH"},null,{"$f":"'DATA KARTU'!$D24","v":"MUHAMMAD ZIDNY NA'IM"}]
[]
[]
[null,"●",null,"●",null,"●",null,"●"]
[null,{"$f":"'DATA KARTU'!$C20","v":"6-2018-012-5"},null,{"$f":"'DATA KARTU'!$C19","v":"6-2018-011-6"},null,{"$f":"'DATA KARTU'!$C18","v":"6-2018-010-7"},null,{"$f":"'DATA KARTU'!$C17","v":"6-2018-009-8"}]
[null,{"$f":"'DATA KARTU'!$D20","v":"MUHAMMAD BISMAR TAUFIQUROHMAN"},null,{"$f":"'DATA KARTU'!$D19","v":"MUHAMMAD AGUS ANDRIANTO"},null,{"$f":"'DATA KARTU'!$D18","v":"MUCHAMMAD ALIEF FERDIANSYAH"},null,{"$f":"'DATA KARTU'!$D17","v":"MOCHAMAD RIFKY ROSAN"}]
[]
[]
[null,"●",null,"●",null,"●",null,"●"]
[null,{"$f":"'DATA KARTU'!$C13","v":"6-2018-005-4"},null,{"$f":"'DATA KARTU'!$C14","v":"6-2018-006-3"},null,{"$f":"'DATA KARTU'!$C15","v":"6-2018-007-2"},null,{"$f":"'DATA KARTU'!$C16","v":"6-2018-008-9"}]
[null,{"$f":"'DATA KARTU'!$D13","v":"HANIK APRILIA SARI"},null,{"$f":"'DATA KARTU'!$D14","v":"HIDAYATUL KHUMAINIA"},null,{"$f":"'DATA KARTU'!$D15","v":"IZZA ILMIA AZZAHRA"},null,{"$f":"'DATA KARTU'!$D16","v":"KHARISYA AZZAHRO"}]
[]
[]
[null,"●",null,"●",null,"●",null,"●"]
[null,{"$f":"'DATA KARTU'!$C12","v":"6-2018-004-5"},null,{"$f":"'DATA KARTU'!$C11","v":"6-2018-003-6"},null,{"$f":"'DATA KARTU'!$C10","v":"6-2018-002-7"},null,{"$f":"'DATA KARTU'!$C9","v":"6-2018-001-8"}]
[null,{"$f":"'DATA KARTU'!$D12","v":"DEWI SAKINAH ISWARA"},null,{"$f":"'DATA KARTU'!$D11","v":"ANDINI MAULID DWI LESTARI"},null,{"$f":"'DATA KARTU'!$D10","v":"AHMAD RAMADHANI FADLULLOH"},null,{"$f":"'DATA KARTU'!$D9","v":"ADITYA MAULA FANDY TAULANI"}]
[]
[]
[null,null,null,"PENGAWAS",null,"PENGAWAS"]
[null,null,null,"●",null,"●"]
[]
[]
[]
[]
[{"$f":"\"DENAH RUANG \"&'DATA KARTU'!B29","v":"DENAH RUANG 6A"}]
[{"$f":"A2","v":" (PTS)"}]
[{"$f":"'DATA KARTU'!$D$3","v":"MIS NURUL ISLAM LABRUK KIDUL"}]
[]
[]
[null,"●",null,"●",null,"●",null,"●"]
[null,{"$f":"'DATA KARTU'!$C48","v":"6-2018-040-9"},null,{"$f":"'DATA KARTU'!$C47","v":"6-2018-039-2"},null,{"$f":"'DATA KARTU'!$C46","v":"6-2018-038-3"},null,{"$f":"'DATA KARTU'!$C45","v":"6-2018-037-4"}]
[null,{"$f":"'DATA KARTU'!$D48","v":"LAILA AFIFAHTUR ROHMAH"},null,{"$f":"'DATA KARTU'!$D47","v":"KRISNA DWI WICAKSONO"},null,{"$f":"'DATA KARTU'!$D46","v":"KHAFIT I'ZAZ ABIYYU"},null,{"$f":"'DATA KARTU'!$D45","v":"JESIKA NUR SANJANA"}]
[]
[]
[null,"●",null,"●",null,"●",null,"●"]
[null,{"$f":"'DATA KARTU'!$C41","v":"6-2018-033-8"},null,{"$f":"'DATA KARTU'!$C42","v":"6-2018-034-7"},null,{"$f":"'DATA KARTU'!$C43","v":"6-2018-035-6"},null,{"$f":"'DATA KARTU'!$C44","v":"6-2018-036-5"}]
[null,{"$f":"'DATA KARTU'!$D41","v":""},null,{"$f":"'DATA KARTU'!$D42","v":""},null,{"$f":"'DATA KARTU'!$D43","v":""},null,{"$f":"'DATA KARTU'!$D44","v":"IZZA AFKARINA"}]
[]
[]
[null,"●",null,"●",null,"●",null,"●"]
[null,{"$f":"'DATA KARTU'!$C40","v":"6-2018-032-9"},null,{"$f":"'DATA KARTU'!$C39","v":"6-2018-031-2"},null,{"$f":"'DATA KARTU'!$C38","v":"6-2018-030-3"},null,{"$f":"'DATA KARTU'!$C37","v":"6-2018-029-4"}]
[null,{"$f":"'DATA KARTU'!$D40","v":""},null,{"$f":"'DATA KARTU'!$D39","v":""},null,{"$f":"'DATA KARTU'!$D38","v":""},null,{"$f":"'DATA KARTU'!$D37","v":""}]
[]
[]
[null,"●",null,"●",null,"●",null,"●"]
[null,{"$f":"'DATA KARTU'!$C33","v":"6-2018-025-8"},null,{"$f":"'DATA KARTU'!$C34","v":"6-2018-026-7"},null,{"$f":"'DATA KARTU'!$C35","v":"6-2018-027-6"},null,{"$f":"'DATA KARTU'!$C36","v":"6-2018-028-5"}]
[null,{"$f":"'DATA KARTU'!$D33","v":"RIYANTI APRILIA"},null,{"$f":"'DATA KARTU'!$D34","v":"SHONIA AULIA AS'AD"},null,{"$f":"'DATA KARTU'!$D35","v":"VERLINA DWI MAULANI"},null,{"$f":"'DATA KARTU'!$D36","v":"VIKA KUSUMA WATI"}]
[]
[]
[null,"●",null,"●",null,"●",null,"●"]
[null,{"$f":"'DATA KARTU'!$C32","v":"6-2018-024-9"},null,{"$f":"'DATA KARTU'!$C31","v":"6-2018-023-2"},null,{"$f":"'DATA KARTU'!$C30","v":"6-2018-022-3"},null,{"$f":"'DATA KARTU'!$C29","v":"6-2018-021-4"}]
[null,{"$f":"'DATA KARTU'!$D32","v":"RHEA RAYSHANADA NUGRAHA"},null,{"$f":"'DATA KARTU'!$D31","v":"RACHMAD HIDAYAT"},null,{"$f":"'DATA KARTU'!$D30","v":"QORIATUN SHOLIHAH"},null,{"$f":"'DATA KARTU'!$D29","v":"PUTRI NAFI'ATUS SOLIKHAH"}]
[]
[]
[null,null,null,"PENGAWAS",null,"PENGAWAS"]
[null,null,null,"●",null,"●"]
[]
[]
[]
[]
[{"$f":"\"DENAH RUANG \"&'DATA KARTU'!B49","v":"DENAH RUANG 6A"}]
[{"$f":"A2","v":" (PTS)"}]
[{"$f":"'DATA KARTU'!$D$3","v":"MIS NURUL ISLAM LABRUK KIDUL"}]
[]
[]
[null,"●",null,"●",null,"●",null,"●"]
[null,{"$f":"'DATA KARTU'!$C68","v":"6-2018-060-5"},null,{"$f":"'DATA KARTU'!$C67","v":"6-2018-059-6"},null,{"$f":"'DATA KARTU'!$C66","v":"6-2018-058-7"},null,{"$f":"'DATA KARTU'!$C65","v":"6-2018-057-8"}]
[null,{"$f":"'DATA KARTU'!$D68","v":0},null,{"$f":"'DATA KARTU'!$D67","v":0},null,{"$f":"'DATA KARTU'!$D66","v":0},null,{"$f":"'DATA KARTU'!$D65","v":0}]
[]
[]
[null,"●",null,"●",null,"●",null,"●"]
[null,{"$f":"'DATA KARTU'!$C61","v":"6-2018-053-4"},null,{"$f":"'DATA KARTU'!$C62","v":"6-2018-054-3"},null,{"$f":"'DATA KARTU'!$C63","v":"6-2018-055-2"},null,{"$f":"'DATA KARTU'!$C64","v":"6-2018-056-9"}]
[null,{"$f":"'DATA KARTU'!$D61","v":"USUP ABDILAH"},null,{"$f":"'DATA KARTU'!$D62","v":"YUNITA WARDATUL CHOIRIYAH"},null,{"$f":"'DATA KARTU'!$D63","v":"YUSFI RIZKY AZIZAH"},null,{"$f":"'DATA KARTU'!$D64","v":0}]
[]
[]
[null,"●",null,"●",null,"●",null,"●"]
[null,{"$f":"'DATA KARTU'!$C60","v":"6-2018-052-5"},null,{"$f":"'DATA KARTU'!$C59","v":"6-2018-051-6"},null,{"$f":"'DATA KARTU'!$C58","v":"6-2018-050-7"},null,{"$f":"'DATA KARTU'!$C57","v":"6-2018-049-8"}]
[null,{"$f":"'DATA KARTU'!$D60","v":"SALIFA IHDAHLIA"},null,{"$f":"'DATA KARTU'!$D59","v":"NURUL ISLAKHATUL MAGHFIROH"},null,{"$f":"'DATA KARTU'!$D58","v":"MUHAMMAD ZAYIN FADHLILLAH"},null,{"$f":"'DATA KARTU'!$D57","v":"MUHAMMAD SONI"}]
[]
[]
[null,"●",null,"●",null,"●",null,"●"]
[null,{"$f":"'DATA KARTU'!$C53","v":"6-2018-045-4"},null,{"$f":"'DATA KARTU'!$C54","v":"6-2018-046-3"},null,{"$f":"'DATA KARTU'!$C55","v":"6-2018-047-2"},null,{"$f":"'DATA KARTU'!$C56","v":"6-2018-048-9"}]
[null,{"$f":"'DATA KARTU'!$D53","v":"MUHAMAD YOGA HALIM AKBAR"},null,{"$f":"'DATA KARTU'!$D54","v":"MUHAMMAD AKBAR MAULANA ISKHAQ"},null,{"$f":"'DATA KARTU'!$D55","v":"MUHAMMAD ARIS MAHENDRA"},null,{"$f":"'DATA KARTU'!$D56","v":"MUHAMMAD REZA NURDIANSYAH"}]
[]
[]
[null,"●",null,"●",null,"●",null,"●"]
[null,{"$f":"'DATA KARTU'!$C52","v":"6-2018-044-5"},null,{"$f":"'DATA KARTU'!$C51","v":"6-2018-043-6"},null,{"$f":"'DATA KARTU'!$C50","v":"6-2018-042-7"},null,{"$f":"'DATA KARTU'!$C49","v":"6-2018-041-8"}]
[null,{"$f":"'DATA KARTU'!$D52","v":"MOHAMAD RIZKY ARDIANTO"},null,{"$f":"'DATA KARTU'!$D51","v":"MOCHAMAD ALIFAMADIO DWI ANANTA"},null,{"$f":"'DATA KARTU'!$D50","v":"MIFTAKHUS SURUR"},null,{"$f":"'DATA KARTU'!$D49","v":"LIA DAHLIA"}]
[]
[]
[null,null,null,"PENGAWAS",null,"PENGAWAS"]
[null,null,null,"●",null,"●"]

{"sheet":"TULISAN TEMPEL PENSIL","index":4,"n_rows":55,"n_cols":2,"rows_kept":55,"cut":false,"hidden":false,"merged":[]}
["ADIMUL MU'DAM ALI HASAN MUHAMMAD ALBANIN","ADIMUL MU'DAM ALI HASAN MUHAMMAD ALBANIN"]
["AHMAD MASLUFI","AHMAD MASLUFI"]
["AHMAD MASLUKHI","AHMAD MASLUKHI"]
["AKHMAD MIFTAKHUL ULUM","AKHMAD MIFTAKHUL ULUM"]
["AKHMAD ROKHANI YUSUF","AKHMAD ROKHANI YUSUF"]
["ANANDA DWI REZA MUSLIM","ANANDA DWI REZA MUSLIM"]
["ANIFATIMATUS SHOLICHAH","ANIFATIMATUS SHOLICHAH"]
["ANTI HANA KHAIRINNISA","ANTI HANA KHAIRINNISA"]
["DIMAS SAPUTRA","DIMAS SAPUTRA"]
["DWI AMAR MAHENDRA","DWI AMAR MAHENDRA"]
["EIDJA RAHMA SARI","EIDJA RAHMA SARI"]
["ELMA NUR YANTI","ELMA NUR YANTI"]
["FIRLINA AMELIA","FIRLINA AMELIA"]
["IDHA ARIFATUL KHOIROH","IDHA ARIFATUL KHOIROH"]
["IMAM MASLUKHI RAMADANI","IMAM MASLUKHI RAMADANI"]
["INAYATUL CHOIROH","INAYATUL CHOIROH"]
["INDANA ZULFA","INDANA ZULFA"]
["INDANA ZULFA","INDANA ZULFA"]
["INKA RIZKI NADIROH","INKA RIZKI NADIROH"]
["LISA AL FALAH PUTRI","LISA AL FALAH PUTRI"]
["MUKHAMAD IRMAS FIRMANSYAH","MUKHAMAD IRMAS FIRMANSYAH"]
["MUHAMAD RIDHO SAPUTRA","MUHAMAD RIDHO SAPUTRA"]
["MOCHAMAD DIMAS IRWANTO","MOCHAMAD DIMAS IRWANTO"]
["MOCHAMMAD RIDHO MAGHFUR","MOCHAMMAD RIDHO MAGHFUR"]
["MUHAMAD ZIDAN ALYANDI","MUHAMAD ZIDAN ALYANDI"]
["MUHAMMAD IKHWAN MAULANA","MUHAMMAD IKHWAN MAULANA"]
["MUHAMMAD RIZQY MULYA","MUHAMMAD RIZQY MULYA"]
["MOHAMMAD ROJAB","MOHAMMAD ROJAB"]
["MUCHAMAD NUR HIDAYAT","MUCHAMAD NUR HIDAYAT"]
["MUCHAMMAD TEGAR AURA SAPUTRA","MUCHAMMAD TEGAR AURA SAPUTRA"]
["MUHAMMAD DIDI PRAYOGI","MUHAMMAD DIDI PRAYOGI"]
["MUHAMMAD FADLI FIRMANSYAH","MUHAMMAD FADLI FIRMANSYAH"]
["MUHAMMAD SYARIFUDIN","MUHAMMAD SYARIFUDIN"]
["MUHAMMAD ZAENURI","MUHAMMAD ZAENURI"]
["MUKHAMMAD AUNILLAH SYAHPUTRA","MUKHAMMAD AUNILLAH SYAHPUTRA"]
["MUSLIM ABDILLAH","MUSLIM ABDILLAH"]
["NABILATUL KHOIROH","NABILATUL KHOIROH"]
["NADIA MUFIDATUN NISA","NADIA MUFIDATUN NISA"]
["NANIK SRI AGUSTIN","NANIK SRI AGUSTIN"]
["NAZWA NAFISAH","NAZWA NAFISAH"]
["NUR KHAMIDAH","NUR KHAMIDAH"]
["NUR LAILA REZA AGUSTIN","NUR LAILA REZA AGUSTIN"]
["PRISISKA DWIFALENTINA","PRISISKA DWIFALENTINA"]
["PUTRI DUWI OKTAFIYA","PUTRI DUWI OKTAFIYA"]
["QURROTIL A'YUN","QURROTIL A'YUN"]
["RESINATA ALFIYANTI","RESINATA ALFIYANTI"]
["RINA UTARI","RINA UTARI"]
["SITI USWATUN KHASANAH","SITI USWATUN KHASANAH"]
["TASYA DWI MAISYAROH","TASYA DWI MAISYAROH"]
["TASYA WURI INDRAWATI","TASYA WURI INDRAWATI"]
["TORIQUN NAFIK","TORIQUN NAFIK"]
["VENI DWI ISAPUTRI","VENI DWI ISAPUTRI"]
["WASIQ RIZKI ILMIAH","WASIQ RIZKI ILMIAH"]
["WINDA DWI SEPTIANI","WINDA DWI SEPTIANI"]
["WINDI AGUSTINA","WINDI AGUSTINA"]